Workbook

Sheet EXPEDIENTES 2021
A1: CONSEJERIA | B1: SERVICIO | C1: Nº EXP. | D1: NOMBRE DE EXPEDIENTE | E1: SITUACIÓN ACTUAL | F1: OBSERVACIONES | G1: FECHA APROBACIÓN EXPEDIENTE | H1: IMPORTE DE LICITACIÓN SIN IGIC | I1: IGIC | J1: IMPORTE DE LICITACIÓN CON IGIC | K1: VALOR ESTIMADO SIN IGIC | L1: TIPO DE CONTRATO | M1: TRÁMITE -PROCEDIMIENTO | N1: PRÓRROGA (en meses) | O1: PLAZO DE EJECUCIÓN (en meses) | P1: CPV | Q1: FECHA PUBLICACIÓN LICITACIÓN | R1: FECHA DE ADJUDICACIÓN | S1: FECHA PUBLICACIÓN ADJUDICACIÓN | T1: FECHA DESIERTO | U1: FECHA RENUNCIA O DESISTIMIENTO | V1: IMPORTE DE ADJUDICACIÓN SIN IGIC | W1: IGIC ADJUDICACIÓN | X1: IMPORTE DE ADJUDICACIÓN CON IGIC | Y1: RESPONSABLE CONTRATO | Z1: CONTRATISTA NOMBRE | AA1: CONTRATISTA CIF | AB1: FECHA FORMALIZACIÓN CONTRATO | AC1: FECHA PUBLICACIÓN CONTRATO
A2: Sector Primario y Soberanía Alimentaria | B2: Agricultura | C2: 2020/00003395B; LOTE Nº 1 | D2: “SUMINISTRO DE OLIVOS, CITRICOS, FRUTALES DE HUESO Y PEPITA” | E2: FINALIZADO; A.C.; R.P. CONTRATOS | F2: Dividido en 2 lotes | G2: 2021-02-17 | H2: 44.910,68 | I2: 1.347,32€ | J2: 46.258,00€ | K2: 53982,68 (todo el contrato) | L2: Suministro | M2: Abierto simplificado | N2: No procede | O2: Lote 1 (10.000 Olivos y 491 Cítricos): El plazo de entrega será dos meses Lote 1 (4.000 Olivos y 500 Cítricos) | P2: 03450000-9 03120000-8 | Q2: 2021-02-19 | R2: 2021-03-31 | S2: 2021-04-12 | V2: =X2-W2 -> 40430.68 | W2: 1212.92 | X2: 41643.6 | Y2: Antonio Mesa Hernández, Jefe de la Granja de Pozo Negro | Z2: CENTRO DE JARDINERÍA LA LAJITA S.L. | AA2: B35548551 | AB2: 2021-04-14 | AC2: 2021-04-15
A3: Sector Primario y Soberanía Alimentaria | B3: Agricultura | C3: 2020/00003395B; Lote nº 2 | D3: “SUMINISTRO DE OLIVOS, CITRICOS, FRUTALES DE HUESO Y PEPITA” | E3: FINALIZADO; A.C. | F3: Dividido en 2 lotes | G3: 2021-02-17 | H3: 9072 | I3: 272.16 | J3: 9344.16 | K3: 53982,68 (todo el contrato) | L3: Suministro | M3: Abierto simplificado | N3: No procede | O3: Lote 2 (1.440 frutales de huesos y pepitas): El plazo de entrega será durante los tres últimos meses del año 2021. | P3: 03450000-9 03120000-8 | Q3: 2021-02-19 | R3: 2021-03-31 | S3: 2021-04-13 | V3: =X3-W3 -> 9057.6 | W3: 271.73 | X3: 9329.33 | Y3: Antonio Mesa Hernández, Jefe de la Granja de Pozo Negro | Z3: ARBOLES FRUTALES ORERO, S.L. | AA3: B41236894 | AB3: 2021-04-14 | AC3: 2021-04-14
A4: Aguas, Residuos y Caza | B4: Aguas y Residuos | C4: 2019/00037142V; SE0004/21 | D4: Redacción de documentos de seguimiento para el Plan de Control y Vigilancia de la Autorización Ambiental Integrada del Complejo Ambiental de Zurita | E4: FINALIZADO; A.C.; R.P. CONTRATOS | F4: Devuelto a Aguas y Residuos:07.06.2021; Expte. incluido A.C. | G4: 2021-03-11 | H4: 72427.3 | I4: 5069.91 | J4: 77497.21 | K4: 72427.3 | L4: Servicio | M4: Abierto Simplificado | N4: No procede | O4: 12 meses | P4: 90714000 90715000 | Q4: 2021-03-12 | R4: 2021-06-01 | S4: 2021-06-07 | V4: 56229.67 | W4: 3936.08 | X4: 60165.75 | Y4: GemmaPaz Mosquera (Técnica de Aguas y residuos) | Z4: INGENIERIÍA Y GESTIÓN INDUSTRIAL ,S.L.U. | AA4: B13102009 | AB4: 2021-06-03 | AC4: 2021-06-07
A5: Aguas, Residuos y Caza | B5: Aguas y Residuos | C5: 2020/00000461A- Plyca SE0023/20 | D5: Contrato de servicios para la gestión de tres plantas de transferencia y cuatro puntos limpios en la isla de Fuerteventura | E5: FINALIZADO; A.C.; R.P. CONTRATOS | F5: Devuelto Aguas y Residuos; Expte incluido A.Cuentas | G5: 2020-06-29 | H5: 275198.36 | I5: 19263.89 | J5: 294462.25 | K5: 825595.08 | L5: Servicio | M5: Abierto regulación armonizada | N5: 2 prórrogas de 6 meses cada una por acuerdo expreso de las partes y su inicio vendrá determinado con la suscripción del acta de inicio del servicio | O5: 6 meses | P5: 90500000-2 | Q5: 2020-07-06 | R5: 2021-02-17 | S5: 2021-02-17 | V5: 275198.36 | W5: 19263.89 | X5: 294462.25 | Y5: Gemma Paz Mosquera (Técnica de Aguas y residuos) | Z5: UTE STVSUMYTRANS (SUMYTRANS HRDOS JRC 2020, S.L. Y STV GESTIÓN, S.L.) | AA5: U04932919 | AB5: 2021-03-24 | AC5: 2021-03-24
A6: Industria, Comercio, Transportes, Accesibilidad y Movilidad Sostenible | B6: Artesania | C6: 2020/00013829E SE0051/20 | D6: SERVICIOS DE GESTIÓN, MANTENIMIENTO, COMUNICACIÓN ONLINE, Y SERVICIOS DE COMMUNITY MANAGER PARA LA WEB DE ARTESANÍA DEL CABILDO INSULAR DE FUERTEVENTURA | E6: Finalizado, BD, Audic. Cuentas; R.P. Contratos | G6: 2020-12-14 | H6: 33300 | I6: 2331 | J6: 35631 | K6: 66600 | L6: Servicio | M6: Abierto simplificado | N6: 1 año | O6: 1 año | P6: 79400000-8 72000000-5 | Q6: 2020-12-16 | R6: 2021-04-20 | S6: 2021-04-22 | V6: =X6-W6 -> 21645 | W6: 1515.15 | X6: 23160.15 | Y6: María Elena Gutiérrez Lima, Técnica del Servicio de Artesanía | Z6: OVEJERO SEQUEIRO, S.L | AA6: B10407096 | AB6: 2021-04-22 | AC6: 2021-04-23
B7: Presidencia | C7: 2019/00012003V- SU0017/20- (CAROLINA) | D7: Suministro de sillas ergonómicas y mobiliario para puestos de pantalla de visualización de datos | E7: FINALIZADO; A.C. | F7: Trasladado al Servicio:23.07.2021 | G7: 2020-11-16 | H7: 32967 | I7: 2307.69 | J7: 35274.69 | L7: Suministro | M7: Abierto, simplificado | O7: 2 | P7: 39000000-2 | Q7: 2020-11-16 | R7: 2021-06-14 | S7: 2021-07-23 | V7: 21600 | W7: 1512 | X7: 23112 | Y7: Agustín Noval | Z7: PANEL STANDARD, S.L. | AA7: B38288817 | AB7: 2021-07-02 | AC7: 2021-07-23
A8: Infraestructuras, Territorio y Sector Primario | B8: Carreteras | C8: 2019/125R; OB0019/20 | D8: Travesía de Villaverde carretera FV-101.medidas provisionales para la reducción de la velocidad del tráfico. | E8: FINALIZADO; A.C. y R.P. Contratos | F8: Trasaladado al servicio:21.05.2021; Incluido A.C. | G8: 2020-12-16 | H8: 208830.46 | I8: 14618.13 | J8: 223448.59 | K8: 208830.46 | L8: Obra | M8: Abierto Simplificado | N8: No procede | O8: 3 meses | P8: 45233150-5 | Q8: 2020-12-18 | R8: 2021-04-28 | S8: 2021-04-28 | V8: =X8-W8 -> 146870.46 | W8: 10280.93 | X8: 157151.39 | Y8: Don Orlando D. Fajardo Gutiérrez, Ingeniero Técnico de Obras Públicas del Servicio de Carreteras | Z8: CRISPAL ISLAS SL | AA8: B76126804 | AB8: 2021-05-18 | AC8: 2021-05-18
A9: Infraestructuras, Territorio y Sector Primario | B9: Carreteras | C9: 2019/6893H OB0017/20 | D9: Mejora del firme carretera Fv-10 entre PP.KK., 30.500 y 35.530 | E9: FINALIZADO; A.C.; R.P. Contratos | F9: Devuelto expte. a Carreteras:24.06.2021; Enviar documentación Audiencia C.; Incluido en relación contratos | G9: 2020-12-01 | H9: 959750.94 | I9: 67182.57 | J9: 1026933.51 | K9: 959750.94 | L9: Obra | M9: Abierto Simplificado | N9: No procede | O9: 2 meses | P9: 45233223-8 | Q9: 2020-12-03 | R9: 2021-05-31 | S9: 2021-06-04 | V9: 913203.02 | W9: 63924.21 | X9: 977127.23 | Y9: Orlando Fajardo Gutiérrez | Z9: UTE.:CORORASA- TECOPSA, S.A | AA9: U42791582 | AB9: 2021-06-23 | AC9: 2021-06-24
A10: Cultura, Patrimonio Histórico y Difusión Patrimonio Cultural | B10: Centro de Arte y Exposiciones | C10: 2019/00011759A- SE0028/20 | D10: SERVICIO DE MONTAJE Y DESMONTAJE DE EXPOSICIONES, APOYO A LA ACTIVIDAD DEL PALACIO DE FORMACIÓN Y CONGRESOS DE FUERTEVENTURA Y MANIPULACIÓN DE LA COLECCIÓN DE ARTE, ORGANIZACIÓN DEL DEPÓSITO DE ARTE DEL CABILDO INSULAR DE FUERTEVENTURA, EN EL CENTRO DE ARTE JUAN ISMAEL Y CENTROS ADSCRITOS | E10: Lote 1; Desistido procedimiento | F10: 2 LOTES | G10: 2020-09-02 | H10: 32933.13 | I10: 2305.32 | J10: 35238.45 | K10: 188231.7 | L10: Servicio | M10: Abierto | N10: Períodos de 1 año | O10: 1 año | P10: 63100000-0/ 63110000-3/ 79950000-8/ 79956000-0/ 92521000-9 | Q10: 2020-09-09 | R10: Desistido proce: 14/06/2021
A11: Cultura, Patrimonio Histórico y Difusión Patrimonio Cultural | B11: Centro de Arte y Exposiciones | C11: 2019/00011759A- SE0028/20 | D11: SERVICIO DE MONTAJE Y DESMONTAJE DE EXPOSICIONES, APOYO A LA ACTIVIDAD DEL PALACIO DE FORMACIÓN Y CONGRESOS DE FUERTEVENTURA Y MANIPULACIÓN DE LA COLECCIÓN DE ARTE, ORGANIZACIÓN DEL DEPÓSITO DE ARTE DEL CABILDO INSULAR DE FUERTEVENTURA, EN EL CENTRO DE ARTE JUAN ISMAEL Y CENTROS ADSCRITOS | E11: Lote 2; Desistido procedimiento | F11: 2 LOTES | G11: 2020-09-02 | H11: 61182.72 | I11: 4282.8 | J11: 65465.52 | K11: 188231.7 | L11: Servicio | M11: Abierto | N11: Períodos de 1 año | O11: 1 año | P11: 63100000-0/ 63110000-3/ 79950000-8/ 79956000-0/ 92521000-9 | Q11: 2020-09-09
A12: Cultura, Patrimonio Histórico y Difusión Patrimonio Cultural | B12: Cultura | C12: 2020/00022111R- SU0016/20 | D12: SUMINISTRO DE DOS PIANOS DE COLA PARA SU UTILIZACIÓN EN LAS DIFERENTES ACTIVIDADES CULTURALES QUE SE ORGANIZAN REGULARMENTE EN EL AUDITORIO INSULAR DE FUERTEVENTURA Y EN EL CENTRO POLIVALENTE MANUEL SANCHEZ GONZÁLEZ. | E12: FINALIZADO; AC.; R. P.CONTRATOS | F12: Trasladado al Servicio | G12: 2020-11-10 | H12: 79253.03 | I12: 5547.71 | J12: 84800.74 | K12: 79253.03 | L12: Suministro | M12: Abierto | O12: plazo máximo de 60 DÍAS a partir | P12: 37311000-2 | Q12: 2020-11-12 | R12: 2021-06-02 | V12: 61965 | W12: 4337.55 | X12: 66302.55 | Y12: Enrique Soler | Z12: IBERPIANO TRADING, S.L. | AA12: B73729618 | AB12: 2021-06-16
A13: Deportes, Seguridad y Emergencias | B13: Deportes | C13: 2020/00010637G- SE0044/20 | D13: SERVICIO DE APOYO AL CONTROL DE USUARIOS, ACCESOS Y APERTURA, SALIDAS Y CIERRE DE LOS CENTROS DEPORTIVOS DEL CABILDO DE FUERTEVENTURA. | E13: FINALIZADO; A.C.; R.P. CONTRATOS | F13: Trasladado al Servicio:06/08/2021 | G13: 2020-11-06 | H13: 137383.18 | I13: 9616.82 | J13: 147000 | K13: 353271.03 | L13: Servicio | M13: Abierto- Regulación armonizada | N13: periodos de doce meses hasta un máximo de dos prorrogas | O13: doce (12) meses a contar desde la formalización del contrato | P13: 98341120-2 | Q13: 2020-11-12 | R13: 2021-05-20 | S13: 2021-08-06 | V13: 125000 | W13: 8750 | X13: 133750 | Y13: Ancor Saavedra Armas | Z13: CEE GRANJA ADISFUER, S.L. | AA13: B35373828 | AB13: 2021-07-30 | AC13: 2021-08-06
A14: Empleo, Educación y Juventud | B14: Educación y Juventud | C14: 2020/2113V- SE0035/20 | D14: SERVICIO DINAMIZADORES JUVENILES | E14: FINALIZADO; A.C. | F14: Trasladado al servicio | G14: 2020-10-22 | H14: 243798.5 | I14: 17065.9 | J14: 260864.4 | K14: 487597 | L14: Servicio | M14: Abierto | N14: por un año, hasta un máximo de dos prórrogas | O14: 2 años | P14: 80310000-0 | Q14: 2020-10-28 | R14: 2021-03-29 | S14: 2021-03-29 | V14: =X14-W14 -> 238034.49 | W14: 16662.41 | X14: 254696.9 | Y14: Inmaculada Lavandera López, Jefa de Servicio de Educación y Juventud | Z14: OCIDE ASESORES S.L. | AA14: B38530614 | AB14: 2021-04-27 | AC14: 2021-04-27
A15: Industria, Comercio, Transportes, Accesibilidad y Movilidad Sostenible | B15: Industria y Actividades Clasificadas | C15: 2019/00008741A-OB0002/21 | D15: 2019 INSTALACIONES DE RENOVABLES EN ALBERGUE DE TEFÍA. | E15: FINALIZADO; A.C.; R.P. Contratos | F15: No lotes; BD A.C.; Trasladado expedienta a Industria:26.07.2021 | G15: 2021-04-30 | H15: 52106.74 | I15: 3647.47 | J15: 55754.21 | K15: 52106.74 | L15: Obra | M15: Abierto simplificado | N15: No procede | O15: 45 días desde siguiente a la firma del acta de replanteo | P15: 45300000-0 45315600-4 45259900-6 45261215-4 | Q15: 2021-05-05 | R15: 2021-07-20 | S15: 2021-07-23 | V15: 38808.45 | W15: 2716.59 | X15: 41525.04 | Y15: Christian Olivares Martínez | Z15: CAMBIO ENERGÉTICO, S.L. | AA15: B10481216 | AB15: 2021-07-23 | AC15: 2021-07-26
A16: Industria, Comercio, Transportes, Accesibilidad y Movilidad Sostenible | B16: Industria y Actividades Clasificadas | C16: 2019/00024228Y- OB0013/20 | D16: ALUMBRADO PUBLICO MEDIANA FV-2 PUERTO DEL ROSARIO-AEROPUERTO; LOTE 1 | E16: FINALIZADO; A.C.; R.P. Contratos | F16: DOS LOTES, incluida documentación A.C. | G16: 2020-09-17 | H16: 307110.41 | I16: 21.497,73€ | J16: 328608.14 | K16: 880546,16 (total contrato) | L16: Obra | M16: Abierto simplificado | N16: No procede | O16: 4 (Cuatro) | P16: 45310000-3 45316110-9 45316100-6 45251160-0 09332000-5 | Q16: 2020-09-21 | R16: 09/12/2020 | S16: 2020-12-10 | V16: 261043,85€ | W16: 18.273,07€ | X16: 279.316,92€ | Y16: Oliver Rodríguez González (Director Facultativo de las obras y Responsable del contrato) | Z16: INSTALACIONES ELECTRICAS ROLUZ SL | AA16: B35558725 | AB16: 2021-01-29 | AC16: 2021-02-01
A17: Industria, Comercio, Transportes, Accesibilidad y Movilidad Sostenible | B17: Industria y Actividades Clasificadas | C17: 2019/00024228Y- OB0013/20 | D17: ALUMBRADO PUBLICO MEDIANA FV-2 PUERTO DEL ROSARIO-AEROPUERTO; LOTE 2 | E17: FINALIZADO; A.C.; R.P. Contratos | F17: DOS LOTES | G17: 2020-09-17 | H17: 573435.75 | I17: 40140.5 | J17: 613576.25 | K17: 880546,16 (total contrato) | L17: Obra | M17: Abierto simplificado | N17: No procede | O17: 2 (dos) meses y 7 días | P17: 45310000-3 45316110-9 45316100-6 45251160-0 09332000-5 | Q17: 2020-09-21 | R17: 09/12/2020 | S17: 2020-12-10 | V17: 413316.81 | W17: 28932.18 | X17: 442248.99 | Y17: Oliver Rodríguez González (Director Facultativo de las obras y Responsable del contrato) | Z17: UTE. ALUMBRADO PÚBLICO MEDIANA FV-2 | AA17: U02849065 | AB17: 2021-01-29 | AC17: 2021-02-01
A18: Industria, Comercio, Transportes, Accesibilidad y Movilidad Sostenible | B18: Industria y Actividades Clasificadas | C18: 2019/8731Q; OB0001/21 | D18: 2019 AUTOCONSUMO EDIF. MUN. LA OLIVA (POLIDEPORTIVO DE CORRALEJO) | E18: FINALIZADO; A.C.; R.P. Contratos | F18: No lotes; Trasladado al Servicio:29.11.2021 | G18: 2020-04-30 | H18: 59189.23 | I18: 4143.25 | J18: 63332.48 | K18: 59189.23 | L18: Obra | M18: Abierto simplificado | N18: No procede | O18: 50 días naturales a partir de la firma del acta de replanteo | P18: 45300000-0 45315600-4 45259900-6 45261215-4 | Q18: 2021-05-04 | R18: 2021-11-08 | S18: 2021-11-29 | V18: =X18-W18 -> 50615.45 | W18: 3543.08 | X18: 54158.53 | Y18: D. Mateo Aguiar Grimón, Jefe | Z18: LUMICAN S.A. | AA18: A35038900 | AB18: 2021-11-29 | AC18: 2021-11-29
B19: Servicio de Infraestructuras | C19: 2020/4980D; OB005/21 | D19: Acondicionamiento Ramal camino Gran Barranco en el Valle de Santa Inés. T.M. de Betancuria | E19: FINALIZADO; A.C. | F19: Trasladado al Servicio:09.11.2021 | G19: 2021-06-03 | H19: 58963.82 | I19: 4127.47 | J19: 63091.29 | K19: 58963.82 | L19: Obra | M19: SUPERSIMPLIFICADO | O19: 10 d | P19: 45233222-1 | Q19: 2021-06-14 | R19: 2021-08-11 | S19: 2021-11-09 | V19: 56900.09 | W19: 3983.01 | X19: 60883.1 | Y19: del Servicio de Industria y Actividades Clasificadas | Z19: OBRAS PUBLICAS CANARIAS, S.L. | AA19: B76140953 | AB19: 09.08.2021 | AC19: 2021-11-09
A20: Industria, Comercio, Transportes, Accesibilidad y Movilidad Sostenible | B20: Industria y Actividades Clasificadas | C20: 2020/1810J OB0015/20 | D20: Instalaciones con energía renovable perrera municipal de Pájara | E20: FINALIZADO; A.C. | F20: No lotes | G20: 2020-11-26 | H20: 67724.47 | I20: 4740.71 | J20: 72465.18 | K20: 67724.47 | L20: Obras | M20: Abierto simplificado | N20: No procede | O20: 20 días a parti de la firma del acta de replanteo | P20: 45300000-3 45315600-4 45259900-6 45261215-4 | Q20: 2020-11-27 | R20: 31/03/20201 | S20: 2021-03-31 | V20: =X20-W20 -> 51270.47 | W20: 3588.93 | X20: 54859.4 | Y20: Don Oliver Rodríguez González, Ingeniero Técnico Industria | Z20: ELECTRIMEGA S.L. | AA20: B76210632 | AB20: 2021-04-09 | AC20: 2021-04-12
A21: Industria+A40:J41, Comercio, Transportes, Accesibilidad y Movilidad Sostenible | B21: Industria y Actividades Clasificadas | C21: 2020/2777Z- SU0013/20 | D21: Suministro de 5 vehículos 100 por cien eléctricos., INTEGRADO 2 LOTES | E21: FINALIZADO, A.C.; R.P. CONTRATOS | F21: Lote nº 1 | G21: 2020-09-03 | H21: 33.151,00 € | I21: 0 | J21: 33.151,00 € | K21: 33.151,00 € | L21: Suministro | M21: Abierto | O21: 3 meses | P21: 34144900-7 | Q21: 2020-09-09 | R21: 03/12/20 | S21: 2020-12-04 | V21: 33131.05 | W21: 0 | X21: 33131.05 | Y21: Mateo Aguiar Grimón (Jefe de Servicio de Industria y Actividades Clasificadas) | Z21: MACHER MOTOR SL | AA21: B35623693 | AB21: 2021-01-11 | AC21: 2021-01-12
A22: Industria, Comercio, Transportes, Accesibilidad y Movilidad Sostenible | B22: Industria y Actividades Clasificadas | C22: 2020/2777Z Plyca SU0013/20 | D22: Suministro de 5 vehículos 100 por cien eléctricos. | E22: FINALIZADO, A.C. | F22: Lote nº 2; Trasladado al Servicio:14.07.2021 | G22: 2020-09-03 | H22: 136000 | I22: 0 | J22: 136000 | K22: 136000 | L22: Suministro | M22: Abierto | O22: 3 meses | P22: 34144900-7 | Q22: 2020-09-09 | R22: 2021-06-01 | S22: 2021-07-14 | V22: 135600 | W22: 0 | X22: 135600 | Y22: Mateo Aguiar Grimón (Jefe de Servicio de Industria y Actividades Clasificadas) | Z22: IFUERT S.L. | AA22: B76164599 | AB22: 2021-06-23 | AC22: 2021-07-14
A23: Infraestructuras, Territorio y Sector Primario | B23: Infraestructuras | C23: 2019/00000517W OB0018/20 | D23: ACONDICIONAMIENTO Y MEJORA PAISAJÍSTICA DE ESPACIO PÚBLICO EN LA VILLA DE BETANCURIA FDCAN 2019 | E23: Desierto | F23: Desierto | G23: 2020-12-15 | H23: 154927.67 | I23: 10844.94 | J23: 165772.61 | K23: 154927.67 | L23: Obra | M23: Abierto Simplificado | N23: No procede | O23: 7 meses | P23: 45262522-6 45233160-8 45233253-7 | Q23: 2020-12-17 | T23: 05/03/2021 Publicado 15/03/21
A24: Infraestructuras, Territorio y Sector Primario | B24: Infraestructuras | C24: 2019/00026174C OB0016/20 | D24: AJARDINAMIENTO DEL ÁREA ANEXA AL CENTRO DE DÍA Y RESIDENCIA DE PERSONAS CON DISCAPACIDAD | E24: FINALIZADO; A.C.; R.P. Contratos | F24: Trasladado expte. a Infraestructuras: 19.07.2021 | G24: 2020-11-27 | H24: 74612.72 | I24: 5222.89 | J24: 79835.61 | K24: 74612.72 | L24: Obra | M24: Abierto Simplificado art. 159.6 LCSP | N24: No procede | O24: 2 meses | P24: 45233200-1 | Q24: 2020-12-01 | R24: 2021-07-05 | S24: 2021-07-16 | V24: 60520.96 | W24: 4236.47 | X24: 64757.43 | Y24: Ignacio Castillo Alonso | Z24: EULEN, S.A. | AA24: A28517308 | AB24: 2021-07-05 | AC24: 2021-07-19
A25: Infraestructuras, Territorio y Sector Primario | B25: Infraestructuras | C25: 2019/00038607X- SE0027/20; 2 LOTES | D25: Dirección facultativa de la obra, de las instalaciones y la coordinación de seguridad y salud de la obra correspondiente al proyecto denominado RESIDENCIA Y CENTRO DE DÍA PARA PERSONAS MAYORES DEPENDIENTES, en Puerto del Rosario | E25: FINALIZADO; A.C. | F25: Mesa: 17.09.20: Lote 2 en baja PROJECT- Ok presentó- Encargo a Infra oferta en baja el 14/10/20) //- MESA: 24/09/20: presentada Daniel Padrón doc. Para poder valorar solvencia Lote 1 (pasó el plazo y no presentó RCO Arquitectos)- El 16/10/20 hecho encargo inf. ofertas Lote 1-// MESA: 29/10/20: LOTE 1 (Inf. valoración); LOTE 2 (Inf. Baja Project-justifica)- LOTE 1: Arana req. Doc adjudicar Lote 1 fin hasta 16/11/20 (enviada 05/11/20) // LOTE 2: PROJECT MANAGENT req. adjudicar requerir fin hasta 16/11/20 (enviada 05/11/20) // Volver mesa
A26: Infraestructuras, Territorio y Sector Primario | B26: Infraestructuras | C26: 2019/38480K- Plyca SE0029/20; 9 lotes | D26: CONTRATO DE SERVICIOS PARA LA REDACCIÓN DE PROYECTOS Y DIRECCIÓN FACULTATIVA DE LAS OBRAS Y COORDINACIÓN DE SEGURIDAD Y SALUD DE LAS MISMAS EN CENTROS DE LA RED DE MUSEOS: MIRADOR DE MORRO VELOSA, EN EL FARO DEL TOSTÓN Y CUEVA DEL LLANO | E26: Adjudicado - Lote 1; FINALIZADO; A.C.; | F26: Dividido en 9 lotes; Trasladado al Servicio:12.07.2021 | G26: 2020-09-14 | H26: 9028.56 | I26: 632 | J26: 9660.56 | K26: 9028.56 | L26: Servicio | M26: Abierto simplificado | N26: No procede | O26: 1 mes y 15 días | P26: 71240000-6 | Q26: 2020-09-14 | R26: 2020-12-21 | S26: 2020-12-23 | V26: 6300€ | W26: 441€ | X26: 6.741,00€ | Y26: Doña María del Pino González Gordillo, Técnica de Infraestructuras | Z26: TIM ARQUITECTOS S.L. | AA26: B35766641 | AB26: 2020-12-31 | AC26: 2021-01-04
A27: Infraestructuras, Territorio y Sector Primario | B27: Infraestructuras | C27: 2019/38480K- SE0029/20 | D27: CONTRATO DE SERVICIOS PARA LA REDACCIÓN DE PROYECTOS Y DIRECCIÓN FACULTATIVA DE LAS OBRAS Y COORDINACIÓN DE SEGURIDAD Y SALUD DE LAS MISMAS EN CENTROS DE LA RED DE MUSEOS: MIRADOR DE MORRO VELOSA, EN EL FARO DEL TOSTÓN Y CUEVA DEL LLANO | E27: Desierto - Lote 2 | F27: Dividido en 9 lotes | G27: 2020-09-14 | H27: 6577.21 | I27: 460.4 | J27: 7037.61 | K27: 6577.21 | L27: Servicio | M27: Abierto simplificado | N27: No procede | O27: Hasta finalización | P27: 71240000-2 | Q27: 2020-09-14 | T27: 2021-03-25
A28: Infraestructuras, Territorio y Sector Primario | B28: Infraestructuras | C28: 2019/38480K- SE0029/20 | D28: CONTRATO DE SERVICIOS PARA LA REDACCIÓN DE PROYECTOS Y DIRECCIÓN FACULTATIVA DE LAS OBRAS Y COORDINACIÓN DE SEGURIDAD Y SALUD DE LAS MISMAS EN CENTROS DE LA RED DE MUSEOS: MIRADOR DE MORRO VELOSA, EN EL FARO DEL TOSTÓN Y CUEVA DEL LLANO | E28: FINALIZADO; 3 | F28: Dividido en 9 lotes | G28: 2020-09-14 | H28: 1960.17 | I28: 137.21 | J28: 2097.38 | K28: 1960.17 | L28: Servicio | M28: Abierto simplificado | N28: No procede | O28: Hasta finalización | P28: 71240000-2 | Q28: 2020-09-14 | R28: 2021-05-20 | S28: 2021-07-12 | V28: 1687.74 | W28: 111.15 | X28: 1698.89 | Y28: Ana Vázquez Y Pino González | Z28: PROJECT MANAGENT ARQUITECTOS TECNICOS,S .L. | AA28: B38817557 | AB28: 2021-06-01 | AC28: 2021-07-12
A29: Infraestructuras, Territorio y Sector Primario | B29: Infraestructuras | C29: 2019/38480K- SE0029/20 | D29: CONTRATO DE SERVICIOS PARA LA REDACCIÓN DE PROYECTOS Y DIRECCIÓN FACULTATIVA DE LAS OBRAS Y COORDINACIÓN DE SEGURIDAD Y SALUD DE LAS MISMAS EN CENTROS DE LA RED DE MUSEOS: MIRADOR DE MORRO VELOSA, EN EL FARO DEL TOSTÓN Y CUEVA DEL LLANO | E29: Adjudicado - Lote 4; FINALIZADO | F29: Dividido en 9 lotes | G29: 2020-09-14 | H29: 12407.58 | I29: 868.53 | J29: 13276.11 | K29: 12407.58 | L29: Servicio | M29: Abierto simplificado | N29: No procede | O29: 2 meses | P29: 71242000-6 | Q29: 2020-09-14 | R29: 2020-12-21 | S29: 2020-12-23 | V29: 8600 | W29: 602 | X29: 9202 | Y29: Doña María del Pino González Gordillo, Técnica de Infraestructuras | Z29: TIM ARQUITECTOS S.L. | AA29: B35766641 | AB29: 2020-12-31 | AC29: 2021-01-04
A30: Infraestructuras, Territorio y Sector Primario | B30: Infraestructuras | C30: 2019/38480K- SE0029/20 | D30: CONTRATO DE SERVICIOS PARA LA REDACCIÓN DE PROYECTOS Y DIRECCIÓN FACULTATIVA DE LAS OBRAS Y COORDINACIÓN DE SEGURIDAD Y SALUD DE LAS MISMAS EN CENTROS DE LA RED DE MUSEOS: MIRADOR DE MORRO VELOSA, EN EL FARO DEL TOSTÓN Y CUEVA DEL LLANO | E30: Desierto - Lote 5 | F30: Dividido en 9 lotes | G30: 2020-09-14 | H30: 9462.99 | I30: 662.41 | J30: 10125.4 | K30: 9462.99 | L30: Servicio | M30: Abierto simplificado | N30: No procede | O30: Hasta finalización | P30: 71240000-2 | Q30: 2020-09-14 | T30: 2021-03-25
A31: Infraestructuras, Territorio y SectorA53:E56 Primario | B31: Infraestructuras | C31: 2019/38480K- Plyca SE0029/20 | D31: CONTRATO DE SERVICIOS PARA LA REDACCIÓN DE PROYECTOS Y DIRECCIÓN FACULTATIVA DE LAS OBRAS Y COORDINACIÓN DE SEGURIDAD Y SALUD DE LAS MISMAS EN CENTROS DE LA RED DE MUSEOS: MIRADOR DE MORRO VELOSA, EN EL FARO DEL TOSTÓN Y CUEVA DEL LLANO | E31: Adjudicado - Lote 6; FINALIZADO | F31: Dividido en 9 lotes | G31: 2020-09-14 | H31: 1871.37 | I31: 131 | J31: 2002.37 | K31: 1871.37 | L31: Servicio | M31: Abierto simplificado | N31: No procede | O31: Hasta finalización | P31: 71240000-2 | Q31: 2020-09-14 | R31: 2021-05-20 | S31: 2021-07-12 | V31: 1515.81 | W31: 106.11 | X31: 1621.92 | Y31: Ana Vázquez, Pino González (en caso de ausencia) | Z31: PROJET MANAGEMENT ARQUITECOTS TÉCNICOS, S.L. | AA31: B38817557 | AB31: 2021-06-01 | AC31: 2021-07-12
A32: Infraestructuras, Territorio y Sector Primario | B32: Infraestructuras | C32: 2019/38480K- Plyca SE0029/20 | D32: CONTRATO DE SERVICIOS PARA LA REDACCIÓN DE PROYECTOS Y DIRECCIÓN FACULTATIVA DE LAS OBRAS Y COORDINACIÓN DE SEGURIDAD Y SALUD DE LAS MISMAS EN CENTROS DE LA RED DE MUSEOS: MIRADOR DE MORRO VELOSA, EN EL FARO DEL TOSTÓN Y CUEVA DEL LLANO | E32: Adjudicado - Lote 7; FINALIZADO | F32: Dividido en 9 lotes | G32: 2020-09-14 | H32: 7031.54 | I32: 492.21 | J32: 7523.75 | K32: 7031.54 | L32: Servicio | M32: Abierto simplificado | N32: No procede | O32: 1 mes y 15 días | P32: 1240000-2 | Q32: 2020-09-14 | R32: 2021-05-20 | S32: 2021-07-12 | V32: 5273.11 | W32: 369.11 | X32: 5642.11 | Y32: Ana Vázquez, Pino González (en caso de ausencia) | Z32: TOMÁS FRANCISCO FUENTES BERRIEL | AA32: 78549148P | AB32: 2021-06-02 | AC32: 2021-07-12
A33: Infraestructuras, Territorio y Sector Primario | B33: Infraestructuras | C33: 2019/38480K- Plyca SE0029/20 | D33: CONTRATO DE SERVICIOS PARA LA REDACCIÓN DE PROYECTOS Y DIRECCIÓN FACULTATIVA DE LAS OBRAS Y COORDINACIÓN DE SEGURIDAD Y SALUD DE LAS MISMAS EN CENTROS DE LA RED DE MUSEOS: MIRADOR DE MORRO VELOSA, EN EL FARO DEL TOSTÓN Y CUEVA DEL LLANO | E33: Desierto - Lote 8 | F33: Dividido en 9 lotes | G33: 2020-09-14 | H33: 1389.06 | I33: 97.23 | J33: 1486.29 | K33: 1389.06 | L33: Servicio | M33: Abierto simplificado | N33: No procede | O33: Hasta finalización | P33: 1240000-2 | Q33: 2020-09-14 | T33: 2021-03-25
A34: Infraestructuras, Territorio y Sector Primario | B34: Infraestructuras | C34: 2019/38480K- Plyca SE0029/20 | D34: CONTRATO DE SERVICIOS PARA LA REDACCIÓN DE PROYECTOS Y DIRECCIÓN FACULTATIVA DE LAS OBRAS Y COORDINACIÓN DE SEGURIDAD Y SALUD DE LAS MISMAS EN CENTROS DE LA RED DE MUSEOS: MIRADOR DE MORRO VELOSA, EN EL FARO DEL TOSTÓN Y CUEVA DEL LLANO | E34: Desierto - Lote 9 | F34: Dividido en 9 lotes | G34: 2020-09-14 | H34: 639.9 | I34: 44.79 | J34: 684.69 | K34: 639.9 | L34: Servicio | M34: Abierto simplificado | N34: No procede | O34: Hasta finalización | P34: 1240000-2 | Q34: 2020-09-14 | T34: 2021-03-25
A35: Infraestructuras, Territorio y SeA47:J48ctor Primario | B35: Infraestructuras | C35: 2020/00020843K- 2019/33010W- OB0014/20 | D35: ASFALTADO DE CALLES EN T.M. BETANCURIA, 4 lotes : LOTE Nº 1: Asfaltado Calle Presidente Hormiga. Villa de Betancuria. T.M. de Betancuria. | E35: Lote 1; FINALIZADO; A.C.; R,P. CONTRATOS | F35: Entrada: 23/09/20 (Expte genérico 2020/00020843K) | G35: 2020-11-10 | H35: 52567.13 | I35: 3679.7 | J35: 56246.83 | K35: 52567.13 | L35: Obra | M35: Abierto simplificado | O35: Un (1) mes partir del día siguiente al de la firma del acta de comprobación del replanteo. | P35: 45233222-1 | Q35: 2020-11-13 | R35: 2021-05-17 | S35: 2021-05-28 | V35: 52567.13 | W35: 3.679.70 | X35: 56246.83 | Y35: Orlando Fajardo Gutiérrez | Z35: OBRAS PÚBLICAS CANARIAS, S.L. | AA35: B76140953 | AB35: 2021-06-17 | AC35: 2021-06-24
A36: Infraestructuras, Territorio y Sector Primario | B36: Infraestructuras | C36: 2020/00020843K- 2019/33009R- OB0014/20 | D36: ASFALTADO DE CALLES EN T.M. BETANCURIA, 4 lotes: LOTE Nº 2: Asfaltado de las calles San Bartolomé, Lugar La Montañeta y Santa Inés. Valle de Santa Inés. T.M. de Betancuria. | E36: Lote 2 A.C.FINALIZADO; A.C.; R,P. CONTRATOS | F36: Entrada: 23/09/20 (Expte genérico 2020/00020843K) | G36: 2020-11-10 | H36: 143499.14 | I36: 10044.94 | J36: 153544.08 | K36: 143499.14 | L36: Obra | M36: Abierto simplificado | O36: Un (1) mes partir del día siguiente al de la firma del acta de comprobación del replanteo. | P36: 45233222-1 | Q36: 2020-11-13 | R36: 2021-05-17 | S36: 2021-05-28 | V36: 143499.14 | W36: 10044.94 | X36: 153544.08 | Z36: OBRAS PÚBLICAS CANARIAS, S.L. | AA36: B76140953 | AB36: 2021-06-17
A37: Infraestructuras, Territorio y Sector Primario | B37: Infraestructuras | C37: 2020/00020843K- 2019/33012G- OB0014/20 | D37: ASFALTADO DE CALLES EN T.M. BETANCURIA, 4 lotes: LOTE Nº 3: Asfaltado de las calles San Juan Torcaz, Gadifer de La Salle y Las Aceitunas. Vega de Rio Palmas. T.M. de Betancuria. | E37: Lote 3FINALIZADO; A.C.; R.P CONTRATOS | F37: Entrada: 23/09/20 (Expte genérico 2020/00020843K) | G37: 2020-11-10 | H37: 54319.36 | I37: 3802.35 | J37: 58121.71 | K37: 54319.36 | L37: Obra | M37: Abierto simplificado | O37: Un (1) mes partir del día siguiente al de la firma del acta de comprobación del replanteo. | P37: 45233222-1 | Q37: 2020-11-13 | R37: 2021-05-17 | S37: 2021-05-28 | V37: 54319.36 | W37: 3802.35 | X37: 58121.71 | Z37: OBRAS PÚBLICAS CANARIAS, S.L. | AA37: B76140953 | AB37: 2021-06-17
A38: Infraestructuras, Territorio y Sector Primario | B38: Infraestructuras | C38: 2020/00020843K- 2020/4973W- OB0014/20 | D38: ASFALTADO DE CALLES EN T.M. BETANCURIA, 4 lotes : LOTE Nº 4: Asfaltado de la calle Los Callejones. Valle de Santa Inés. T.M. de Betancuria. | E38: Lote 4/01/2022 FINALIZADO; A.C., R.P. CONTRATOS | F38: Entrada: 23/09/20 (Expte genérico 2020/00020843K)- | G38: 2020-11-10 | H38: 37202.15 | I38: 2604.15 | J38: 39806.3 | K38: 37202.15 | L38: Obra | M38: Abierto simplificado | O38: Un (1) mes partir del día siguiente al de la firma del acta de comprobación del replanteo. | P38: 45233222-1 | Q38: 2020-11-13 | S38: 2021-05-28 | V38: 37202.15 | W38: 2604.15 | X38: 39806.3 | Z38: OBRAS PÚBLICAS CANARIAS, S.L. | AA38: B76140953 | AB38: 2021-06-17
A39: Infraestructuras, Territorio y Sector Primario | B39: Obras y Maquinaria | C39: 2018/9H SE0008/20 | D39: Servicio de mantenimiento preventivo y correctivo del parque móvil del Cabildo de Fuerteventura y otras entidades adscritas | E39: FINALIZADO- Lote 1 | F39: Devuelto expte. a Obras y Maquinaria:09/07/2021 | G39: 2020-02-24 | H39: 55.500,00€ | I39: 3.885,00€ | J39: 59.385,00€ | K39: 518760 | L39: Servicio | M39: Abierto- Regulación armonizada | N39: 1 año (sin que su vigencia puede exceder de cuatro años) | O39: 1 año | P39: 50000000-5 50112000-3 50114000-7 50115000-4 | Q39: 2020-05-04 | R39: 28/10/20 | S39: 2020-10-28 | V39: 50875 | W39: 3561.25 | X39: 54.436,25€ | Y39: Patricia Molina Calero (Técnica de Obras y Maquinaria) | Z39: ALEJANDRO SUÁREZ MENDOZA | AA39: 45.762.362K | AB39: 18/11/20 | AC39: 19/11/20
A40: Infraestructuras, Territorio y Sector Primario | B40: Obras y Maquinaria | C40: 2018/9H SE0008/20 | D40: Servicio de mantenimiento preventivo y correctivo del parque móvil del Cabildo de Fuerteventura y otras entidades adscritas | E40: FINALIZADO- Lote 2 | F40: Devuelto expte. a Obras y Maquinaria:09/07/2021 | G40: 2020-02-24 | H40: 45.000,00€ | I40: 3.150,00€ | J40: 3. 48.150,00€ | K40: 518760 | L40: Servicio | M40: Abierto- Regulación armonizada | N40: 1 año (sin que su vigencia puede exceder de cuatro años) | O40: 1 año | P40: 50000000-5 50112000-3 50114000-7 50115000-4 | Q40: 2020-05-04 | R40: 23/10/20 | S40: 2020-10-23 | V40: 39.375€ | W40: 2756.25 | X40: 42.131,25€ | Y40: Patricia Molina Calero (Técnica de Obras y Maquinaria) | Z40: JUAN JOSE TEJERA MORENO | AA40: 42.852.989X | AB40: 18/11/20 | AC40: 19/11/20
A41: Infraestructuras, Territorio y Sector Primario | B41: Obras y Maquinaria | C41: 2018/9H SE0008/20 | D41: Servicio de mantenimiento preventivo y correctivo del parque móvil del Cabildo de Fuerteventura y otras entidades adscritas | E41: FINALIZADO- Lote 3 | F41: Devuelto expte. a Obras y Maquinaria:09/07/2021 | G41: 2020-02-24 | H41: 8.450,00€ | I41: 591,50€ | J41: 9.041,50€ | K41: 518760 | L41: Servicio | M41: Abierto- Regulación armonizada | N41: 1 año (sin que su vigencia puede exceder de cuatro años) | O41: 1 año | P41: 50000000-5 50112000-3 50114000-7 50115000-4 | Q41: 2020-05-04 | R41: 2021-05-27 | S41: 2021-07-09 | V41: 8450 | W41: 591.5 | X41: 9041.5 | Y41: Patricia Molina Calero (Técnica de Obras y Maquinaria) | Z41: TALLERES ELÉCTRICO JUAN YANES, S.L. | AA41: B35665397 | AB41: 2021-06-09 | AC41: 2021-07-09
A42: Infraestructuras, Territorio y Sector Primario | B42: Obras y Maquinaria | C42: 2018/9H SE0008/20 | D42: Servicio de mantenimiento preventivo y correctivo del parque móvil del Cabildo de Fuerteventura y otras entidades adscritas | E42: Desierto- Lote 4 | F42: Devuelto expte. a Obras y Maquinaria:09/07/2021 | G42: 2020-02-24 | H42: 7.600,00€ | I42: 532,00€ | J42: 8.132,00€ | K42: 518760 | L42: Servicio | M42: Abierto- Regulación armonizada | N42: 1 año (sin que su vigencia puede exceder de cuatro años) | O42: 1 año | P42: 50000000-5 50112000-3 50114000-7 50115000-4 | Q42: 2020-05-04 | T42: 20/07/2020 (Lote 4 y 6)
A43: Infraestructuras, Territorio y Sector Primario | B43: Obras y Maquinaria | C43: 2018/9H SE0008/20 | D43: Servicio de mantenimiento preventivo y correctivo del parque móvil del Cabildo de Fuerteventura y otras entidades adscritas | E43: FINALIZADO- Lote 5 | G43: 2020-02-24 | H43: 9.600,00€ | I43: 672,00€ | J43: 10.272,00€ | K43: 518760 | L43: Servicio | M43: Abierto- Regulación armonizada | N43: 1 año (sin que su vigencia puede exceder de cuatro años) | O43: 1 año | P43: 50000000-5 50112000-3 50114000-7 50115000-4 | Q43: 2020-05-04 | R43: 2021-05-27 | S43: 2021-07-09 | V43: 9600 | W43: 672 | X43: 10272 | Y43: Patricia Molina Calero (Técnica de Obras y Maquinaria | Z43: TALLERES ELÉCTRICOS JUAN YÁNES, S.L. | AA43: B35665397 | AB43: 2021-07-01 | AC43: 2021-07-09
A44: Infraestructuras, Territorio y Sector Primario | B44: Obras y Maquinaria | C44: 2018/9H SE0008/20 | D44: Servicio de mantenimiento preventivo y correctivo del parque móvil del Cabildo de Fuerteventura y otras entidades adscritas | E44: Desierto- Lote 6 | G44: 2020-02-24 | H44: 3.540,00€ | I44: 247,80€ | J44: 3.787,80€ | K44: 518760 | L44: Servicio | M44: Abierto- Regulación armonizada | N44: 1 año (sin que su vigencia puede exceder de cuatro años) | O44: 1 año | P44: 50000000-5 50112000-3 50114000-7 50115000-4 | Q44: 2020-05-04 | T44: 20/07/2020 (Lote 4 y 6)
A45: Cultura, Patrimonio Histórico y Difusión Patrimonio Cultural | B45: Patrimonio Cultural | C45: 2020/4343Q; SE003/21 | D45: EXPEDIENTE DE CONTRATACIÓN PARA EDICIÓN DE LIBROS; LOTE 1 | E45: Lote 1; FINALIZADO | F45: Finalizado; Devuelto expte. al Servicio:31.05.2021 | G45: 2021-03-09 | H45: 14724,46 | I45: 1030.71 | J45: 15755.17 | K45: 55004,94 (todo el contrato) | L45: SERVICIO | M45: Abierto simplificado | N45: No procede | O45: 9 MESES (cada lote) | P45: 79823000 79821100 79970000 79822500 79971200 | Q45: 2021-03-11 | R45: 2021-05-19 | S45: 2021-05-28 | V45: 6990 | W45: 489.3 | X45: 7479.3 | Y45: Sebastián Rivera Pérez | Z45: PRODUCCIONES MIC. S.L. | AA45: B24301871 | AB45: 2021-05-26 | AC45: 2021-05-28
A46: Cultura, Patrimonio Histórico y Difusión Patrimonio Cultural | B46: Patrimonio Cultural | C46: 2020/4343Q - SE0003/21 | D46: EXPEDIENTE DE CONTRATACIÓN PARA EDICIÓN DE LIBROS; LOTE Nº 2 | E46: Lote 2; FINALIZADO | F46: Finalizado | G46: 2021-03-09 | H46: 2734,49 | I46: 191.41 | J46: 2925.90 | K46: 55004,94 (todo el contrato) | L46: SERVICIO | M46: Abierto simplificado | N46: No procede | O46: 9 MESES (cada lote) | P46: 79823000 79821100 79970000 79822500 79971200 | Q46: 2021-03-11 | R46: 2021-05-19 | S46: 2021-05-28 | V46: 1650 | W46: 115.5 | X46: 1765 | Y46: Sebastián Rivera Pérez | Z46: GRAFO, S.A. | AA46: A48203996 | AB46: 2021-05-27 | AC46: 2021-05-28
A47: Cultura, Patrimonio Histórico y Difusión Patrimonio Cultural | B47: Patrimonio Cultural | C47: 2020/4343Q - SE0003/21 | D47: EXPEDIENTE DE CONTRATACIÓN PARA EDICIÓN DE LIBROS; LOTE Nº 3 | E47: Lote 3; FINALIZADO | F47: Finalizado | G47: 2021-03-09 | H47: 8051,05 | I47: 563.58 | J47: 8614.63 | K47: 55004,94 (todo el contrato) | L47: SERVICIO | M47: Abierto simplificado | N47: No procede | O47: 9 MESES (cada lote) | P47: 79823000 79821100 79970000 79822500 79971200 | Q47: 2021-03-11 | R47: 2021-05-19 | S47: 2021-05-28 | V47: 2985 | W47: 208.95 | X47: 3193.95 | Y47: Sebastián Rivera Pérez | Z47: PRODUCCIONES MIC. S.L. | AA47: B24301871 | AB47: 2021-05-26 | AC47: 2021-05-28
A48: Cultura, Patrimonio Histórico y Difusión Patrimonio Cultural | B48: Patrimonio Cultural | C48: 2020/4343Q - SE0003/21 | D48: EXPEDIENTE DE CONTRATACIÓN PARA EDICIÓN DE LIBROS; LOTE Nº 4 | E48: Lote 4; FINALIZADO | F48: Finalizado | G48: 2021-03-09 | H48: 23818.54 | I48: 1667.30 | J48: 25485.84 | K48: 55004,94 (todo el contrato) | L48: SERVICIO | M48: Abierto simplificado | N48: No procede | O48: 9 MESES (cada lote) | P48: 79823000 79821100 79970000 79822500 79971200 | Q48: 2021-03-11 | R48: 2021-05-19 | S48: 2021-05-28 | V48: 8475 | W48: 593.25 | X48: 9068.25 | Y48: Sebastián Rivera Pérez | Z48: PRODUCCIONES MIC. S.L. | AA48: B24301871 | AB48: 2021-05-26 | AC48: 2021-05-28
A49: Cultura, Patrimonio Histórico y Difusión Patrimonio Cultural | B49: Patrimonio Cultural | C49: 2020/4343Q - SE0003/21 | D49: EXPEDIENTE DE CONTRATACIÓN PARA EDICIÓN DE LIBROS; LOTE Nº 5 | E49: Lote 5; FINALIZADO | F49: Finalizado | G49: 2021-03-09 | H49: 2449.70 | I49: 171.48 | J49: 2621.18 | K49: 55004,94 (todo el contrato) | L49: SERVICIO | M49: Abierto simplificado | N49: No procede | O49: 9 MESES (cada lote) | P49: 79823000 79821100 79970000 79822500 79971200 | Q49: 2021-03-11 | R49: 2021-05-19 | S49: 2021-05-28 | V49: 1200 | W49: 84 | X49: 1284 | Y49: Sebastián Rivera Pérez | Z49: GRAFO, S.A. | AA49: A48203996 | AB49: 2021-05-27 | AC49: 2021-05-28
A50: Cultura, Patrimonio Histórico y Difusión Patrimonio Cultural | B50: Patrimonio Cultural | C50: 2020/4343Q - SE0003/21 | D50: EXPEDIENTE DE CONTRATACIÓN PARA EDICIÓN DE LIBROS; LOT Nº 6 | E50: Lote 6; FINALIZADO | F50: Finalizado | G50: 2021-03-09 | H50: 3226.70 | I50: 225.87 | J50: 3452.57 | K50: 55004,94 (todo el contrato) | L50: SERVICIO | M50: Abierto simplificado | N50: No procede | O50: 9 MESES (cada lote) | P50: 79823000 79821100 79970000 79822500 79971200 | Q50: 2021-03-11 | R50: 2021-05-19 | S50: 2021-05-28 | V50: 970 | W50: 67.9 | X50: 1037.9 | Y50: Sebastián Rivera Pérez | Z50: PRODUCCIONES MIC. S.L. | AA50: B24301871 | AB50: 2021-05-26 | AC50: 2021-05-28
A51: Sector Primario y Soberanía Alimentaria | B51: Servicio de Agricultura, Ganadería y Pesca | C51: 2020/00011572L; SU002/21 | D51: SUMINISTRO DE UN SOFTWARE DE GESTION INTEGRAL PARA EL LABORATORIO AGROALIMENTARIO DE FUERTEVENTURA | E51: FINALIZADO; A.C.;R.P. CONTRATOS | G51: 2021-04-08 | H51: 22545 | I51: 1578.15 | J51: 24123.15 | K51: 22545 | L51: Suministro | M51: Abierto Simplificado art. 159.6 LCSP | N51: No procede | O51: Suministro: 4 meses Servicio: 2 años | P51: 48920000-3 72267000-4 | Q51: 2021-04-13 | R51: 2021-05-17 | S51: 2021-05-18 | V51: 17584 | W51: 1230 | X51: 18814.88 | Y51: Atonio Mesa Hernández | Z51: SOPA SOFTWARE, S.A. | AA51: B83921361 | AB51: 2021-05-17 | AC51: 18/05/2021; Devuelto Servicio:21.05.2021
A52: Industria, Comercio, Transportes, Accesibilidad y Movilidad Sostenible | B52: Servicio de Transportes y Comunicaciones | C52: 2020/00011143G; SE0008/21 | D52: CONTRATACIÓN DEL SERVICIO DE MANTENIMIENTO Y SOPORTE DE LA APLICACIÓN INFORMÁTICA DE GESTIÓN DEL SERVICIO DE TRANSPORTES DEL CABILDO | E52: FINALIZADO; incluido A.C. | F52: Trasladado al Servicio:22.07.2021 | G52: 2021-04-29 | H52: 58600 | I52: 4102 | J52: 62702 | K52: 88600 | L52: Servicio | M52: Negociado sin publicidad, art. 168 | N52: períodos de 1 año hasta máximo 2 años | O52: 2 años | P52: 72263000-6 72267100-0 48000000-8 | Q52: 03/05/2021 Envío invitación | R52: 2021-06-07 | S52: 2021-07-22 | V52: 58600 | W52: 4102 | X52: 62702 | Y52: María del Pino Sánchez Sosa | Z52: INGENIUM LABOR, S.L. | AA52: B76637412 | AB52: 2021-06-09 | AC52: 2021-07-22
A53: Servicios Generales | B53: Servicios Generales | C53: 2020/3135G Plyca SE0045/20 | D53: SERVICIO LIMPIEZA CENTROS CABILDO | E53: FINALIZADO- Lote 1; Incluido A.C | G53: 2020-12-01 | H53: 616.543,24€ | I53: 43.158,02€ | J53: 659.701,26€ | K53: 5.565.687,72 € (total contrato) | L53: Servicio | M53: Abierto regulación armonizada | N53: Períodos de 1 año hasta máximo 3 prórrogas | O53: 1 año | P53: 90911200-8 90919200-4 | Q53: 2020-12-04 | R53: 2021-03-19 | S53: 2021-03-19 | V53: =X53-W53 -> 435800 | W53: 30506 | X53: 466306 | Y53: Don Agustín Noval Vázquez, Jefe de servicio de Servicios Generales | Z53: SERVICIOS AUXILIARES DE MANTENIMIENTO Y LIMPIEZA S.L | AA53: B-47037577 | AB53: 2021-04-22 | AC53: 2021-04-22
A54: Servicios Generales | B54: Servicios Generales | C54: 2020/3135G Plyca SE0045/20 | D54: SERVICIO LIMPIEZA CENTROS CABILDO | E54: FINALIZADO- Lote 2 | G54: 2020-12-01 | H54: 105.690,73€ | I54: 7.398,35€ | J54: 113.089,08€ | K54: 5.565.687,72 € (total contrato) | L54: Servicio | M54: Abierto regulación armonizada | N54: Períodos de 1 año hasta máximo 3 prórrogas | O54: 1 año | P54: 90911200-8 90919200-4 | Q54: 2020-12-04 | R54: 2021-03-19 | S54: 2021-03-19 | V54: =X54-W54 -> 78800 | W54: 5516 | X54: 84316 | Y54: Don Agustín Noval Vázquez, Jefe de servicio de Servicios Generales | Z54: SERVICIOS AUXILIARES DE MANTENIMIENTO Y LIMPIEZA S.L | AA54: B-47037577 | AB54: 2021-04-22 | AC54: 2021-04-22
A55: Servicios Generales | B55: Servicios Generales | C55: 2020/3135G Plyca SE0045/20 | D55: SERVICIO LIMPIEZA CENTROS CABILDO | E55: FINALIZADO- Lote 3 | G55: 2020-12-01 | H55: 345.541,01€ | I55: 24.187,87€ | J55: 369.728,88€ | K55: 5.565.687,72 € (total contrato) | L55: Servicio | M55: Abierto regulación armonizada | N55: Períodos de 1 año hasta máximo 3 prórrogas | O55: 1 año | P55: 90911200-8 90919200-4 | Q55: 2020-12-04 | R55: 2021-03-19 | S55: 2021-03-19 | V55: 249800 | W55: 17486 | X55: 267286 | Y55: Don Agustín Noval Vázquez, Jefe de servicio de Servicios Generales | Z55: SERVICIOS AUXILIARES DE MANTENIMIENTO Y LIMPIEZA S.L | AA55: B-47037577 | AB55: 2021-04-22 | AC55: 2021-04-22
A56: Servicios Generales | B56: Servicios Generales | C56: 2020/3135G Plyca SE0045/20 | D56: SERVICIO LIMPIEZA CENTROS CABILDO | E56: FINALIZADO- Lote 4 | G56: 2020-12-01 | H56: 91743.29 | I56: 6422.03 | J56: 98165.32 | K56: 5.565.687,72 € (total contrato) | L56: Servicio | M56: Abierto regulación armonizada | N56: Períodos de 1 año hasta máximo 3 prórrogas | O56: 1 año | P56: 90911200-8 90919200-4 | Q56: 2020-12-04 | R56: 2021-03-19 | S56: 2021-03-19 | V56: 71964.9 | W56: 5037.54 | X56: 77002.44 | Y56: Don Agustín Noval Vázquez, Jefe de servicio de Servicios Generales | Z56: INTERSERVE FACILITIES SERVICES S.A.U. | AA56: A28506038 | AB56: 2021-04-16 | AC56: 2021-04-16
A57: Infraestructuras, Territorio y Sector Primario | B57: Servicios Generales | C57: 2020/00000527T SE0050/20 | D57: MANTENIMIENTO DE LOS SISTEMAS DE PROTECCIÓN CONTRA INCENDIOS DE LOS CENTROS Y EDIFICIOS DEL CABILDO DE FUERTEVENTURA | E57: FINALIZADO- Lote 1; Incluido A.C | G57: 2020-12-14 | H57: 26.812,95€ | I57: 1.876,91€ | J57: 28.689,86€ | K57: 161213.74 | L57: Servicio | M57: Abierto | N57: Lote 1: 3 prórrogas anuales | O57: 1 año | P57: 50413200-5 | Q57: 2020-12-15 | R57: 2021-03-22 | S57: 2021-03-22 | V57: =X57-W57 -> 19569.35 | W57: 1369.85 | X57: 20939.2 | Y57: Don Jorge Hernández Hernández, Técnico del servicio de Servicios Generales | Z57: SEDANE 2000, S.L. | AA57: B35661909 | AB57: 2021-04-20 | AC57: 2021-04-21
A58: Infraestructuras, Territorio y Sector Primario | B58: Servicios Generales | C58: 2020/00000527T SE0050/20 | D58: MANTENIMIENTO DE LOS SISTEMAS DE PROTECCIÓN CONTRA INCENDIOS DE LOS CENTROS Y EDIFICIOS DEL CABILDO DE FUERTEVENTURA | E58: FINALIZADO- Lote 2; Incluido A.C. | G58: 2020-12-14 | H58: 7389 | I58: 517.23 | J58: 7906.23 | K58: 161213.74 | L58: Servicio | M58: Abierto | N58: Lote 2: 2 prórrogas anuales | O58: 1 año | P58: 50413200-5 | Q58: 2020-12-15 | R58: 2021-03-22 | S58: 2021-03-22 | V58: =X58-W58 -> 5911 | W58: 413.77 | X58: 6324.77 | Y58: Don Jorge Hernández Hernández, Técnico del servicio de Servicios Generales | Z58: INSTALACIONES Y OBRAS INSULARES, S.L. | AA58: B76084169 | AB58: 2021-04-20 | AC58: 2021-04-21
A59: Infraestructuras, Territorio y Sector Primario | B59: Servicios Generales | C59: 2019/00012003V- SU0017/20 | D59: Suministro de sillas ergonómicas y mobiliario para puestos de pantalla de visualización de datos | E59: FINALIZADO; A.C. | F59: Desitió e incoó nuevamente; Trasladado al servicio:23.07.2021 | G59: 2021-11-16 | H59: 32967 | I59: 3206.79 | J59: 32274.69 | K59: 28861.11 | L59: Suministro | M59: Abierto, simplificado | O59: 1 | P59: 39000000-2 | Q59: 2021-11-17 | R59: 2021-06-14 | S59: 2021-07-23 | V59: 21600 | W59: 1512 | X59: 23112 | Y59: Agustín Noval | Z59: PANEL STANDARD, S.L. | AA59: B38288817 | AB59: 2021-07-02 | AC59: 2021-07-23
A60: Infraestructuras, Territorio y Sector Primario | B60: Servicios Generales | C60: 2019/00031084P-SU0014/20 | D60: Suministro de material de oficina no inventariable, INTGRADO POR TRES LOTES | E60: FINALIZADO - Lote 1; Incluido A.C. | F60: Adjudicado Lote 1 | G60: 2020-09-07 | H60: 7.339,93 € | I60: 220,20€ | J60: 7.560,13€ | K60: 220338,56 (total contrato) | L60: Suministro | M60: Abierto- DOUE | N60: 3 prórrogas anuales | O60: 1 año | P60: 30190000-7 | Q60: 2020-09-10 | R60: Lote 1: 11/02/2021 | S60: Lote 1: 11/02/2021 | V60: Lote 1: 7339.93 (máximo de gasto) | W60: Lote 1: 220,20 | X60: Lote 1: 7560,13 | Y60: Lote 1: Agustín noval Vázquez | Z60: Lote 1: Ofimax Canarias SL | AA60: Lote 1: B35255462 | AB60: Lote 1: 10/03/2021 | AC60: Lote 1: 10/03/2021
A61: Infraestructuras, Territorio y Sector Primario | B61: Servicios Generales | C61: 2019/00031084P- SU0014/20 | D61: Suministro de material de oficina no inventariable | E61: Desierto- Lote 2 | F61: Lote 2 y 3 -Desierto | G61: 2020-09-07 | H61: 16.767,38€ | I61: 503,02€ | J61: 17.270,40€ | K61: 220338,56 (total contrato) | L61: Suministro | M61: Abierto- DOUE | N61: 3 prórrogas anuales | O61: 1 año | P61: 30190000-7 | Q61: 2020-09-10 | T61: Lote 2 Lote 3 17/11/2020
A62: Infraestructuras, Territorio y Sector Primario | B62: Servicios Generales | C62: 2019/00031084P- SU0014/20 | D62: Suministro de material de oficina no inventariable | E62: Desierto- Lote 3 | F62: Lote 2 y 3 -Desierto | G62: 2020-09-07 | H62: 30977.33 | I62: 929.32 | J62: 31906.65 | K62: 220338,56 (total contrato) | L62: Suministro | M62: Abierto- DOUE | N62: 3 prórrogas anuales | O62: 1 año | P62: 30190000-7 | Q62: 2020-09-10 | T62: Lote 2 Lote 3 17/11/2020
A63: Presidencia | B63: Turismo | C63: 2019/31544P Plyca SE0033/20 | D63: CONTRATO DE SERVICIOS DE INGENIERIA PARA ESTUDIO DE PROYECTOS, VISITAS Y EMISION DE LOS INFORMES PRECEPTIVOS EN MATERIA TURISTICA ALOJATIVA DEL CABILDO DE FUERTEVENTURA | E63: FINALIZADO - Lote 1; Incluido A.C. | F63: Gasto del contrato | G63: 2020-10-22 | H63: 32.760,56€ | I63: 2.293,24€ | J63: 35.053,80€ | K63: 101010,56 (total contrato) | L63: Servicio | M63: Abierto | N63: No procede | O63: 1 año | P63: 71330000-0 | Q63: 2020-10-23 | R63: 04/02/2021 | S63: 10/02/2021 | U63: Gasto del contrato | V63: 32760,56€ | W63: 2293,24€ | X63: 35053,80€ | Y63: Lidia Padilla Perdomo | Z63: Técnicos administradores fincas Fuerteventura Sl | AA63: B76105287 | AB63: 01/03/2021 | AC63: 04/03/2021
A64: Presidencia | B64: Turismo | C64: 2019/31544P Plyca SE0033/20 | D64: CONTRATO DE SERVICIOS DE INGENIERIA PARA ESTUDIO DE PROYECTOS, VISITAS Y EMISION DE LOS INFORMES PRECEPTIVOS EN MATERIA TURISTICA ALOJATIVA DEL CABILDO DE FUERTEVENTURA | E64: FINALIZADO - Lote 2 | F64: Gasto del contrato | G64: 2020-10-22 | H64: 68250 | I64: 4777.5 | J64: 73027.5 | K64: 101010,56 (total contrato) | L64: Servicio | M64: Abierto | N64: No procede | O64: 1 año | Q64: 2020-10-23 | R64: 2021-01-27 | S64: 2021-02-10 | U64: Gasto del contrato | V64: 68250 | W64: 4777.5 | X64: 73027.5 | Y64: Lidia Padilla Perdomo | Z64: 3AIS SCP | AA64: J76173210 | AB64: 18/02/21 | AC64: 2021-02-19
A65: Cultura, Patrimonio Histórico y Difusión Patrimonio Cultural | B65: Palacio de Formación y Congresos | C65: 2019/00015377X SE0018/20 | D65: Contrato de servicios - Asistencia a los usuarios en salas y espacios del PFCF | E65: FINALIZADO; A.C. | G65: 2020-06-17 | H65: 52443.18 | I65: =J65-H65 -> 3671.02 | J65: 56114.2 | K65: 104886.36 | L65: Servicio | M65: Abierto | N65: 1 año | O65: 1 año | P65: 79342320-2 | Q65: 2020-06-22 | R65: 2021-03-24 | S65: 2021-03-25 | U65: Gasto del contrato | V65: =X65-W65 -> 52443.18 | W65: 3671.02 | X65: 56114.2 | Y65: Horacio Umpierrez Sánchez, Gerente del Palacio de Formación y Congresos de Fuerteventura | Z65: UTE ACTIVA | AA65: U76325539 | AB65: 2021-04-20 | AC65: 2021-04-21
A66: Gobierno Abierto, Información, Transparencia, Participación Ciudadana, Sección de Oficinas Integradas de Atención al Ciudadano, Nuevas Tecnologías e Informática | B66: Información, Transparfencia y Participación Ciudadana | C66: 2020/00028866V SE0005/21 | D66: Servicios postales de notificaciones administrativas del Cabildo Insular de Fuerteventura. | E66: FINALIZADO; A.C. R.P. CONTRATOS | F66: Correos- no lotes | G66: 2021-03-31 | H66: 30000 | I66: 2100 | J66: 32100 | K66: 60000 | L66: Servicio | M66: Negociado sin publicidad | N66: 1 año | O66: 1 año | P66: 64110000-0 | Q66: 2021-04-09 | R66: 2021-04-27 | S66: 2021-04-28 | U66: Gasto del contrato | V66: =X66-W66 -> 29906.54206 | W66: =X66*7/107 -> 2093.457944 | X66: 32000 | Y66: Dolores Juan López Tomazety, Jefa de Servicio de Transparencia | Z66: SOCIEDAD ESTAL DE CORREOS S.A | AA66: A83052407 | AB66: 2021-05-21 | AC66: 2021-05-24
A67: Área de Cultura, Patrimonio Histórico, Innovación, Transparencia y Participación Ciudadana | B67: Unidad de Gestión de Cultura | C67: 2020/00022901D SU0003/21; 2 lotes | D67: SUMINISTRO EN RÉGIMEN DE ALQUILER, INSTALACIÓN Y EJECUCIÓN DE EQUIPOS DE SONIDO, ILUMINACIÓN, AUDIOVISUALES Y ESTRUCTURAS | E67: FINALIZADO; A.C. | F67: Trasladado expte al Servicio | G67: 2021-04-15 | H67: 464482.24 | I67: 32513.76 | J67: 496996 | K67: =H67*4 -> 1857928.96 | L67: Suministro | M67: Abierto regulación armonizada | N67: año (1) hasta un máximo de tres (3) prórrogas | O67: 1 año | P67: 32322000-6 32342410-9 51313000-9 51314000-6 71318100-1 92370000-5 51310000-8 | Q67: 2021-04-16 | R67: 2021-06-25 | S67: 2021-06-28 | V67: 346875.35 | W67: 24281.27 | X67: 346875.35 | Y67: Domingo Curbelo Herrera | Z67: AUDIO LUZ CANARIAS, S.L. | AA67: B35294743 | AB67: 2021-06-25 | AC67: 2021-06-28
A68: Área Insular de Cultura, Patrimonio Histórico, Innovación, Transparencia y Participación Ciudadana | B68: Centro de Arte y Exposiciones | C68: 2021/00002460Z SU0004/21 | D68: SUMINISTRO DE MATERIAL, INSTALACIÓN, MONTAJE, DESMONTAJE, PUESTA EN MARCHA ASÍ COMO LA ASISTENCIA TÉCNICA Y MANEJO DE LOS EQUIPOS TÉCNICOS PROFESIONALES DE IMAGEN, SONIDO, ILUMINACIÓN, AUDIOVISUALES Y AUXILIARES NECESARIOS PARA LA CORRECTA EJECUCIÓN DE LAS ACTIVIDADES CULTURALES PROGRAMADAS POR EL PALACIO DE FORMACIÓN Y CONGRESOS DE FUERTEVENTURA | E68: FINALIZADO; A.C. | F68: Trasladado expte. Servicio | G68: 2021-04-20 | H68: 55,736,59€ | I68: 3,901,56€ | J68: 59,638,15€ | K68: 55,736,59€ | L68: Suministro | M68: Abierto Simplificado art. 159.6 LCSP | N68: No procede | O68: Según eventos hasta 09/07/2021 | P68: 32322000-6 32342410-9 51313000-9 71318100-1 92370000-5 | Q68: 2021-04-22 | R68: 2021-05-12 | S68: 2021-05-14 | V68: =X68-W68 -> 44589.27 | W68: 3121.25 | X68: 47710.52 | Y68: Doña Catalina Carrascosa Molino, Técnica del Palacio de Formación y Congresos de Fuerteventura | Z68: AUDIOLUZ CANARIAS S.L. | AA68: B35294743 | AB68: 2021-05-13 | AC68: 2021-05-14
A69: Presidente del Cabildo | B69: Servicios Generales | C69: 2020/00024130L SE0007/21 | D69: SEGURO DE ACCIDENTES COLECTIVO PARA EL PERSONAL DEL CABILDO DE FUERTEVENTURA, ORGANISMOS AUTÓNOMOS Y ENTES DEPENDIENTES | E69: FINALIZADO; A.C. | F69: Devuelto expte. a Servicio Generales: 28.05.2021 | G69: 2021-04-26 | H69: 10000 | I69: 0 | J69: 10000 | K69: 48000 | L69: Servicio | M69: Abierto simplificado | N69: 1 año hasta máximo 3 prórrogas | O69: 1 año | P69: 66512000-2 66512100-3 | Q69: 2021-04-27 | S69: 25.05.2021 | T69: 2021-05-25
A70: Presidente del Cabildo | B70: Servicios Generales | C70: 2020/00024371F SE0007/21 | D70: SEGURO DE LOS VEHÍCULOS A MOTOR DEL CABILDO DE FUERTEVENTURA, ORGANISMOS AUTÓNOMOS Y ENTES DEPENDIENTES | E70: FINALIZADO; A.C. | F70: Traslado expte. a Servicos Generales: 18.08.2021 | G70: 2021-04-28 | H70: 43500 | I70: 0 | J70: 43500 | K70: 208800 | L70: Servicio | M70: Abierto | N70: 1 año hasta máximo 3 prórrogas | O70: 1 año | P70: 66510000-8 66514110-0 | Q70: 2021-04-29 | R70: 2021-07-08 | S70: 2021-07-09 | V70: 40890.96 | W70: 0 | X70: 40890.96 | Y70: Agustín Noval Vázquez | Z70: MAPFRE ESPAÑA COMPAÑÍA SEGUROS Y REASEGUROS, S.A. | AA70: A28141935 | AB70: 2021-08-06 | AC70: 2021-08-18
A71: Presidente del Cabildo | B71: Servicios Generales | C71: 2020/27879L SU0005/21 | D71: SUMINISTRO DE EXTINTORES PARA ALGUNOS CENTROS DEL CABILDO DE FUERTEVENTURA | E71: FINALIZADO; A.C. | F71: Trasladado al Servicio:16.07.2021 | G71: 2021-05-07 | H71: 5222.69 | I71: 365.59 | J71: 5588.28 | K71: 5222.69 | L71: Suministro | M71: Abierto Simplificado; Supersimplificado | N71: No procede | O71: 1 mes | P71: 35111000-5; Equipo extinción incendios | Q71: 2021-05-10 | R71: 2021-07-12 | S71: 12.07.2021 | V71: =X71-W71 -> 2819.6 | W71: 197.37 | X71: 3016.97 | Y71: Jorge Hernández Hernández, Técnica de Servicios Generales | Z71: ELECTRIMEGA, S.L.U, | AA71: B76210632 | AB71: 2021-07-13 | AC71: 16.07.2021
A72: Educación y Juventud+A110:U110 | B72: Escuela Insular de Música | C72: 2020/21037P SU0006/21 | D72: Suministro de material inventariable – instrumentos musicales para la Escuela Insular de Música de Fuerteventura | E72: FINALIZADO; Devuelto al Servicio:21.10.2021; A.C. | F72: Este contrato se envío al T. Administrativo de Contratos y se adjudico por Consejo G. el13.08.2021; Se resolvio recurso por el Tribunal Administrativo Contratos | G72: 2021-05-10 | H72: 107423.01 | I72: 7519.61 | J72: 114942.62 | K72: 107423.01 | L72: Suministro | M72: Abierto Simplificado | N72: No procede | O72: 30 días naturales | P72: 37310000-4 37312000-8 37313000-5 37314000-2 37316000-6 37315000-9 37320000-7 37321700-1 39112000-0 | Q72: 2021-05-12 | R72: 2021-07-16 | S72: 2021-07-22 | V72: 90235.33 | W72: 6316.47 | X72: 96551.8 | Y72: Javier Santos Alocén | Z72: HAZEN DISTRIBUIDORA GENERAL PIANOS,S.A | AA72: A28179836 | AB72: 2021-07-21 | AC72: 2021-07-23
A73: Servicios Generales | B73: Servicios Generales | C73: 2020/12845G; SE0011/21 | D73: Servicio mantenimiento instalaciones fotovoltaicas de los edificios del Cabildo Insular de Fuerteventura | E73: FINALIZADO; A.C. | F73: Devuelto al Servicio:13.08.2021 | G73: 2021-05-12 | H73: 8866.33 | I73: 620.64 | J73: 9486.97 | K73: 8866.33 | L73: Servicio | M73: Abierto simplificado (Supersimplificado) | N73: 12 | O73: 1 año | P73: 5000000-5; 50532000-3 | Q73: 2021-05-24 | R73: 2021-08-06 | S73: 2021-08-13 | V73: 6185 | W73: 433.65 | X73: 6..628,65 | Y73: Javier Hernández Hernández | Z73: SINCROLUX, S.L. | AA73: B762277776 | AB73: 12.08.2021 | AC73: 2021-08-13
A74: Asuntos Sociales, Sanidad, Consumo e Inmigración | B74: Asuntos Sociales, Sanidad, Consumo e Inmigración | C74: 2020/00029546F SE0010/21 | D74: CONTRATO ADMINISTRATIVO DE SERVICIOS PARA AUXILIAR AL CABILDO DE FUERTEVENTURA EN LA GESTIÓN DE LOS CENTROS DE PROTECCIÓN DE MENORES. | E74: FINALIZADO; A.C.; INCLUIDA DOCUMENT. A.c. | F74: Acuerdo del Consejo de Gobierno Insular- aprobación; Trasladado a Servicios Sociales:30.11.2021 | G74: 2021-05-10 | H74: 11415770.1 | I74: 0 | J74: 11415770.1 | K74: 13001384.7 | L74: Servicio | M74: Abierto regulación armonizada | N74: No procede | O74: 4 años | P74: 85311000-2 85311300-5 | Q74: 2021-05-14 | R74: 2021-10-11 | S74: 2021-11-17 | V74: 11016218.5 | W74: 0 | Y74: Auxiliadora Cabrera Padilla y Nereida Gil Betancor | Z74: ASOCIACIÓN SOIDARIA MUNDO NUEVO, S.L. | AA74: G35827765 | AB74: 2021-11-24 | AC74: 2021-11-26
A75: Presidente del Cabildo | B75: Servicios Generales | C75: 2021/1573R, SU0008/21 | D75: SUMINISTRO DE GEL ANTISÉPTICO DE MANOS COMO MEDIDA PREVENTIVA FRENTE AL COVID-19 | E75: FINALIZADO; A.C. | F75: Trasladado al Servicio:10.08.2021 | G75: 2021-05-13 | H75: 5217 | I75: 156.51 | J75: 5373.51 | K75: 10434 | L75: Suministro | M75: Abierto Simplificado art. 159.6 LCSP | N75: 1 año | O75: 30 días desde la formallización del contrato | P75: 33741300-9 | Q75: 2021-05-20 | R75: 2021-08-06 | S75: 2021-08-10 | V75: 1959.25 | W75: 58.78 | X75: 2018.03 | Y75: Agustín Noval Vázquez | Z75: GUERRA Y FERNÁNDEZ, S.L. | AA75: B35045715 | AB75: 2021-08-08 | AC75: 2021-08-10
A76: Presidencia Cabildo | B76: Agricultura | C76: 2020/29262E; SU0013/21 | D76: SUMINISTRO DE REACTIVOS Y MATERIALES DE LOS EQUIPOS TEMPO Y MINIVIDAS, MARCA "BIOMERIEUX", DEL LABORATORIO AGROALIMENTARIO DE FUERTEVENTURA. | E76: FINALIZADO; A.C. | G76: 2021-06-02 | H76: 41177.4 | I76: 1235.32 | J76: 42412.72 | K76: 41177.4 | L76: SUMINISTRO | M76: P/ NEGOCIADO SIN CONCURRENCIA | O76: 4 | P76: 3369500-0; 33696300-8 | Q76: Invitación:09.06.2021 | R76: 2021-08-11 | S76: 2021-12-17 | V76: 41177.4 | W76: 1235.32 | X76: 42412.72 | Y76: Antonio Mesa Hernández | Z76: BIOMERIUX ESPAÑA, S.A. | AA76: A28664589 | AB76: 2021-08-25 | AC76: 2021-12-17
A77: Empleo, Educación y Juventud | B77: Educación y Juventud | C77: 2021/00006004Q; SU0007/21 | D77: Contrato de suministro, montaje e instalación de mobiliaro para el Albergue Juvenil de Tefía. | E77: FINALIZADO; A.C. | F77: SUPERSIMPLIFICADO | G77: 2021-05-12 | H77: 59936.87 | I77: 4195.58 | J77: 64132.45 | K77: 59936.87 | L77: Suministro | M77: Abierto Simplificado art. 159.6 LCSP | N77: No procede | O77: 3 meses | P77: 39143111 - Somieres 39100000 - Mobiliario 39143210 - Mesas de comedor 39112000 - Sillas | Q77: 2021-05-13 | R77: 2021-06-10 | S77: 2021-06-16 | V77: 47545 | W77: 3328.15 | X77: 50873.15 | Y77: Doña Jessica Reyes espinel, Técnica de Educación y Juventud | Z77: INDUSTRIAS HIDRAULICAS PARDO, S.L., | AA77: B50057322 | AB77: 2021-06-10 | AC77: 2021-06-14
A78: Cultura, Patrimonio Histórico y Difusión Patrimonio Cultural | B78: Cultura | C78: 2020/00029035W; SU0018/20 | D78: ADQUISICIÓN DE LA OBRA DE ARTE ÚNICA "CABRA AL VIENTO" ESCULPIDA POR EL ARTISTA JUAN MIGUEL CUBAS- | E78: FINALIZADO; A.C. | F78: Trasladado al Servicio:21.10.2021 | G78: 2020-12-14 | H78: 43689.33 | I78: 1310.67 | J78: 45000 | K78: 43689.33 | L78: Suministro | M78: Negociado sin publicidad | N78: No procede | O78: 3 meses | P78: 92311000-4-obras de arte | Q78: 2020-12-14 | R78: 2021-06-10 | S78: 2021-10-21 | V78: 43689.33 | W78: 1310.67 | X78: 45000 | Y78: D. Horacio Umpierrez Sánchez, Gerente del Palacio de Formación y Congresos | Z78: Juan Miguel Cubas Sánchez | AA78: 42886653W | AB78: 2021-10-20 | AC78: 2021-10-21
A79: Infraestructuras, Territorio y Sector Primario | B79: Infraestructuras | C79: 2019/38607X - LOTE 1 | D79: LOTE Nº 1: DIRECCION FACULTATIVA Y RESPONSABLE DEL COTRATO DE OBRAS del contrato denomnado "Dirección facultativa de la obra, de las instalaciones y la coordinación de seguridad y salud de la obra correspondiente al proyecto denominado RESIDENCIA Y CENTRO DE DÍA PARA PERSONAS MAYORES DEPENDIENTES, en Puerto del Rosario" | E79: FINALIZADO; A.C. | F79: ABIERTO SIMPLIFICADO | G79: 2020-07-30 | H79: 75348.67 | I79: 5274.41 | J79: =H79+I79 -> 80623.08 | K79: 99463.77 | L79: Servicio | M79: Abierto Simplificado | N79: No procede | O79: 13 MESES | P79: Lote 1: 71240000-2 | Q79: 2020-08-31 | R79: 2021-06-23 | V79: =X79-W79 -> 29105.99 | W79: 2037.42 | X79: 31143.41 | Y79: Juan Carlos Pérez Sánchez, Arquitecto, Ana M. Vázquez Rodríguez, Arquitecta Técnica y manuel Martínez Calaco, Ingeniero Industrial | Z79: Pedro Sicilia Martín | AA79: 43822124V | AB79: 2021-06-29 | AC79: 2021-11-22
A80: Infraestructuras, Territorio y Sector Primario | B80: Infraestructuras | C80: 2019/38607X LOTE 2 | D80: LOTE Nº 2: COORDINACION DE LA SEGURIDAD Y SALUD DE LAS OBRAS del contrato denomnado "Dirección facultativa de la obra, de las instalaciones y la coordinación de seguridad y salud de la obra correspondiente al proyecto denominado RESIDENCIA Y CENTRO DE DÍA PARA PERSONAS MAYORES DEPENDIENTES, en Puerto del Rosario" | E80: FINALIZADO; A.C. | F80: ABIERTO SIMPLIFICADO | G80: 2020-07-30 | H80: 24115.1 | I80: 1688.06 | J80: =H80+I80 -> 25803.16 | K80: 99463.77 | L80: Servicio | M80: Abierto Simplificado | N80: No procede | O80: 13 MESES | P80: Lote 1: 71240000-2 y 71317200-5 | Q80: 2020-08-31 | R80: 2021-06-23 | V80: =X80-W80 -> 8612.8 | W80: 602.9 | X80: 9215.7 | Y80: Juan Carlos Pérez Sánchez, Arquitecto, Ana M. Vázquez Rodríguez, Arquitecta Técnica y manuel Martínez Calaco, Ingeniero Industrial | Z80: ARANA Y MUÑOZ EDITA S.L. | AA80: B35958958 | AB80: 2021-06-29 | AC80: 22/112021
A81: Cultura, Patrimonio Histórico y Difusión Patrimonio Cultural | B81: Cultura | C81: 2020/00022901D; SU0003/21 LOTE Nº 1 | D81: LOTE 1: Grandes espacios escénicos y/o culturales del contrato SUMINISTRO EN RÉGIMEN DE ALQUILER, INSTALACIÓN Y EJECUCIÓN DE EQUIPOS DE SONIDO, ILUMINACIÓN, AUDIOVISUALES Y ESTRUCTURAS, ASÍ COMO LA ASISTENCIA TÉCNICA DE PROFESIONALES, NECESARIOS PARA LA EJECUCIÓN DE LAS ACTIVIDADES PROGRAMADAS POR EL CABILDO INSULAR DE FUERTEVENTURA | E81: FINALIZADO; A.C. | F81: Abierto | G81: 2021-04-15 | H81: 464482.24 | I81: 32513.76 | J81: =H81+I81 -> 496996 | K81: 2159966.36 | L81: Suministro | M81: Abierto | N81: 1 año hasta máximo 3 prórrogas | O81: 12 MESES | R81: 2021-06-25 | S81: 2021-06-28 | V81: 346875.35 | W81: 24281.27 | X81: =V81+W81 -> 371156.62 | Y81: Domingo Curbelo Herrera, Técnico de logística y apoyo del servicio de Cultura | Z81: AUDIOLUZ CANARIAS S.L | AA81: B35294743 | AB81: 2021-06-25 | AC81: 2021-06-28
A82: Cultura, Patrimonio Histórico y Difusión Patrimonio Cultural | B82: Cultura | C82: 2020/00022901D; SU0003/21 LOTE Nº 2 | D82: LOTE N2: MEDIANOS Y PEQUEÑOS ESPACIOS ESCÉNICOS Y/O CULTURALES DEL CONTRATO SUMINISTRO EN RÉGIMEN DE ALQUILER, INSTALACIÓN Y EJECUCIÓN DE EQUIPOS DE SONIDO, ILUMINACIÓN, AUDIOVISUALES Y ESTRUCTURAS, ASÍ COMO LA ASISTENCIA TÉCNICA DE PROFESIONALES, NECESARIOS PARA LA EJECUCIÓN DE LAS ACTIVIDADES PROGRAMADAS POR EL CABILDO INSULAR DE FUERTEVENTURA | E82: FINALIZADO; A.C. | F82: Abierto | G82: 2021-04-15 | H82: 75509.35 | I82: 5285.65 | J82: 80795 | K82: 2159966.36 | L82: Suministro | M82: Abierto | N82: 1 año hasta máximo 3 prórrogas | O82: 12 MESES | R82: 2021-06-25 | V82: 64182.95 | W82: 4492.81 | X82: =V82+W82 -> 68675.76 | Y82: Domingo Curbelo Herrera, Técnico de logística y apoyo del servicio de Cultura | Z82: MARAUDIO CANARIAS, S.L. | AA82: B76330968 | AB82: 2021-06-25 | AC82: 2021-06-28
A83: Infraestructuras, Territorio y Sector Primario | B83: Obras y Maquinaria | C83: 2018/9H | D83: Servicio de mantenimiento preventivo y correctivo del parque móvil del Cabildo de Fuerteventura y otras entidades adscritas | E83: Adjudicado- Lote 3 | X83: 9041.5
A84: Infraestructuras, Territorio y Sector Primario | B84: Obras y Maquinaria | C84: 2018/9H | D84: Servicio de mantenimiento preventivo y correctivo del parque móvil del Cabildo de Fuerteventura y otras entidades adscritas | E84: Adjudicado- Lote 5 | X84: 10272
A85: Cultura, Patrimonio Histórico y Difusión Patrimonio Cultural | B85: Cultura | C85: 2021/00009542N; SE0013/21 | D85: CONTRATO DE SERVICIOS TÉCNICOS DE SONIDO, ILUMINACIÓN, AUDIOVISUALES, ESTRUCTURAS Y TRABAJOS AUXILIARES PARA EL FESTIVAL FUERTEVENTURA EN MÚSICA 2021 | E85: FINALIZADO | F85: no celebrado | G85: 2021-06-16 | H85: 97834.51 | I85: 6848.42 | J85: 104682.93 | K85: 97834.51 | L85: SERVICIO | M85: ABIERTO, URGENTE | O85: 2 DIAS | Q85: 2021-06-11 | R85: 2021-06-25 | S85: 2021-06-29 | V85: =X85-W85 -> 97800 | W85: 6846 | X85: 104646 | Z85: AUDIOLUZ CANARIAS S.L | AA85: B35294743
A86: Cultura, Patrimonio Histórico y Difusión Patrimonio Cultural | B86: Cultura | C86: 2021/00009543J; OB0014/21 | D86: CONTRATO DE SERVICIOS COMPLEMENTRIOS Y/O AUXILIARES ASÍ COMO LA LOGÍSTICA PARA EL FESTIVAL FUERTEVENTURA EN MÚSICA 2021 | E86: FINALIZADA; No se hizo | F86: Trasladado al Servicio:02.07.2021 | G86: 2021-06-25 | H86: 94669.62 | I86: 6626.87 | J86: 101296.49 | L86: SERVICIOS | M86: ABIERTO, URGENCIA | V86: =X86-W86 -> 83619 | W86: 5853.33 | X86: 89472.33 | Y86: HORACIO UMPIERREZ | Z86: MAXAUDIO EVENTOS Y PRODUCCIONES S.L | AA86: B76262534
A87: Infraestructuras, Territorio y Sector Primario | B87: Infraestructuras | C87: 2019/2041L- OB003/21 | D87: SUSTITUCION DE CÉSPED ARTIFICIAL EN CAMPOS DE FUTBOL 1 Y 2 "FRANCISCO MELIAN"; LOTE Nº 1 | E87: FINALIZADO; A.C. Incluidad documentación expte. | F87: Devuelto al Servicio Infra:26.08.2021 | G87: 2021-05-21 | H87: 724719.09 | I87: 50730.34 | J87: =H87+I87 -> 775449.43 | K87: 1207550.01 | L87: OBRA | M87: Abierto Simplificado | N87: No procede | O87: 2 MESES | P87: 45212290-5 Reparación y mantenimiento de instalaciones deportivas 39293400-6 Césped artificial | Q87: 2021-05-26 | R87: 2021-08-24 | S87: 2021-08-26 | V87: 499766.28 | W87: 34983.64 | X87: =V87+W87 -> 534749.92 | Y87: María del Pino González Gordillo | Z87: OBRAS Y PAVIMENTOS ESPECIALES, S.A. (O.P.S.A.) | AA87: A28410850 | AB87: 2021-08-25 | AC87: 2021-08-26
A88: Infraestructuras, Territorio y Sector Primario | B88: Infraestructuras | C88: 2019/2041L- OB003/21 | D88: SUSTITUCION DE CÉSPED ARTIFICIAL EN CAMPOS DE FUTBOL 1 Y 2 "FRANCISCO MELIAN"; LOTE Nº 2 | E88: FINALIZADO; A.C.; R.P. CONTRATOS | F88: R. P. contratos ok. | G88: 2021-05-21 | H88: 482830.92 | I88: 33798.16 | J88: =H88+I88 -> 516629.08 | K88: 1207550.01 | L88: OBRA | M88: Abierto Simplificado | N88: No procede | O88: 2 MESES | P88: 45212290-5 Reparación y mantenimiento de instalaciones deportivas 39293400-6 Césped artificial | Q88: 2021-05-26 | R88: 2021-08-11 | S88: 2021-08-26 | V88: 339430.14 | W88: 23760.11 | X88: =V88+W88 -> 363190.25 | Y88: María del Pino González Gordillo | Z88: OBRAS Y PAVIMENTOS ESPECIALES, S.A. (O.P.S.A.) | AA88: A28410850 | AB88: 2021-08-25 | AC88: 2021-08-26
A89: Cultura, Patrimonio Histórico y Difusión Patrimonio Cultural | B89: Centro Bibliotecario | C89: 2020/00025785H; SE0012/21 | D89: Servicios de Organización y Ejecución de la 31ª edición de la Feria Insular del Libro de Fuerteventura 2021 | E89: FINALIZADO; A.C. | F89: Devuelto al Servicio: 31.08.2021 | G89: 2021-05-24 | H89: 44915.25 | I89: 3143.75 | J89: 48059.32 | K89: 53898.3 | L89: SERVICIO | M89: Abierto | N89: No procede | O89: 15 días | P89: 79952999-0; 79952199-3 | Q89: 2021-05-27 | R89: 2021-08-10 | S89: 2021-08-30 | V89: 43415.25 | W89: 3039.07 | X89: 46454.32 | Y89: Elsa Quesada Aguiar | Z89: AUDIOLUZ CANARIAS S.L | AA89: B35294743 | AB89: 2021-08-26 | AC89: 2021-08-30
A90: Infraestructuras, Territorio y Sector Primario | B90: Infraestructuras | C90: 2021/1890L- SU0010/21 | D90: Suministro de material oficina no inventariable. Dos lotes | E90: FINALIZADO; A.C. | G90: 2021-05-31 | K90: 160639.33 | L90: suministro | M90: abierto | N90: 3, de 12 meses | O90: 12 meses | P90: 30190000-7 | Q90: 2021-06-03 | R90: 2021-09-21 | S90: 2021-10-19 | Y90: Agustín Noval Vázquez
A91: Infraestructuras, Territorio y Sector Primario | B91: Infraestructuras | C91: 2021/1890l lote 1 | D91: Carpetas, sistemas de archivo y manipulados de papel | E91: Finalizado; A.C. | H91: 17993.04 | I91: 638.15 | J91: 17993.04 | R91: 2021-09-21 | V91: 17993.04 | W91: 638.15 | X91: 17993.04 | Z91: LIBRERÍA PAPELERÍA ANDRÓMEDA, S.L. | AA91: B35296029 | AB91: 2021-10-13 | AC91: 26/11/2021
A92: Infraestructuras, Territorio y Sector Primario | B92: Infraestructuras | C92: 2021/1890L lote 2 | D92: Papel | E92: FINALIZADO; A.C. | H92: 22771.3 | I92: 966.35 | J92: 23771.3 | V92: 21838.6 | W92: 966.35 | X92: 22804.95 | Z92: LIBRERÍA PAPELERÍA ANDRÓMEDA, S.L. | AA92: B35296029 | AB92: 2021-11-26 | AC92: 2021-11-26
A93: Gobierno Abierto, Información, Transparencia, Participación Ciudadana, Sección de Oficinas Integradas de Atención al Ciudadano, Nuevas Tecnologías e Informática | B93: Información, Transparfencia y Participación Ciudadana | C93: 2020/00031517T; SE0025/21 | D93: MANTENIMIENTOS AYTOS 2021-2025 | E93: FINALIZADO; A.C. | F93: Responsable: Francisco Padilla; Devuelt expte. Servicio: 15/10/2021 | G93: 2021-06-28 | H93: =J93-I93 -> 134960 | I93: 9447.2 | J93: 144407.2 | K93: 134960 | L93: SERVICIO | M93: Negociado sin publicidad | N93: No procede | O93: 4 años | P93: 72267000-4 Servicios de mantenimiento y reparación de software | Q93: 2021-07-05 | R93: 2021-08-10 | S93: 2021-10-15 | V93: =X93-W93 -> 134960 | W93: 9447.2 | X93: 144407.2 | Y93: Francisco José Padilla Castillo | Z93: AYTOS SOLUCIONES INFORMÁTICAS S.L.U., | AA93: B41632332 | AB93: 2021-09-07 | AC93: 2021-10-15
A94: Cultura, Patrimonio Histórico y Difusión Patrimonio Cultural | B94: Centro Bibliotecario | C94: 2020/00030641K; SE0021/21 | D94: Servicio de Dinamización a la lectura de la sala infanti y juvenil del Centro Bibliotecario Insular | E94: FINALIZADO; A.C. | F94: Devuelto al Servicio Centro Bibliotecario:15/10/2021 | G94: 2021-06-23 | H94: 27472 | I94: 1923.04 | J94: 29395.04 | K94: 27472 | L94: Servicio | M94: Abierto | N94: una, de 12 | O94: 12 meses | P94: 92300000-4, 92331210-5 92500000-6 | Q94: 2021-06-25 | R94: 2021-09-21 | S94: 2021-10-15 | V94: 23084.62 | W94: 1615.92 | X94: 24700.54 | Y94: Elsa Quesada Aguiar | Z94: OCIDE ASESORES, S.L. | AA94: B35530614 | AB94: 2021-10-06 | AC94: 2021-10-15
A95: Presidencia, Planificación, Hacienda, Promoción Económica | B95: Planificación y Proyectos Estratégicos | C95: 2020/6571J; SE00438/21 | D95: Servicio de gestión, organización, coordinación, evolución y mantenimiento plataforma de gestión Intranet-Extranet | E95: FINALIZADO; A.C. | F95: Trasladado expediente a Planificación y Proyectos: 09/12/2021 | G95: 2021-08-13 | H95: 60595.26 | I95: 4241.67 | J95: 64836.93 | K95: 60595.26 | L95: Servicio | M95: Abierto Simplificado | O95: 11 meses | P95: 79412000-5 | Q95: 2021-08-23 | R95: 2021-12-09 | S95: 2021-12-15 | V95: 54000 | W95: 3780 | X95: 57780 | Y95: Carlos David Gutiérrez Oramas | Z95: ALSTENDA, S.L. | AA95: B35980481 | AB95: 2021-12-09 | AC95: 2021-12-15
A96: Infraestructuras, Territorio y Sector Primario | B96: Infraestructuras | C96: 2020/24948D/ 2 lotes; SE0016/21 | D96: Servicio para la dirección facultativa y coordinación de Segurdidad y salud obra "Sustitución césped artificial en Campo de Fútbol 1 y 2 Francisco Melián, 2 lotes | E96: FINALIZADO; A.C. | F96: Trasladado al Servicio: 19.10.2021 | G96: 2021-06-15 | H96: 11441.12 | I96: 801.3 | J96: 12248.42 | K96: 11441.12 | L96: Servicico | M96: Simplificado | O96: 2 meses | P96: 71240000-2 | Q96: 2021-06-16 | R96: 2021-09-27 | S96: 2021-10-19 | Y96: Pino Gonzalez Gordillo
C97: 2020/24948D/ 1 | D97: Servicio para la dirección facultativa y coordinación de Segurdidad y salud obra "Sustitución césped artificial en Campo de Fútbol 1Francisco Melián, lotes 1 | E97: FINALIZADO; A.C. | J97: 6546.64 | K97: 458.27 | V97: 4333.33 | W97: 303.33 | X97: 4636.66 | Z97: Luis Beltran Padilla Carmona | AA97: 42.889.770Z | AB97: 06.10.2021 | AC97: 19.10.2021
C98: 2020/24948D/ 2 lotes | D98: Servicio para la dirección facultativa y coordinación de Segurdidad y salud obra "Sustitución césped artificial en Campo de Fútbol 1Francisco Melián, lotes 2 | E98: FINALIZADO; A.C. | J98: 4900.48 | K98: 343.03 | V98: 3333.33 | W98: 233.33 | X98: 3566.66 | Z98: Luis Beltran Padilla Carmona | AA98: 42.889.770Z | AB98: 06.10.2021 | AC98: 19.10.2021
A99: Infraestructuras, Territorio y Sector Primario | B99: Servicio de Infraestructuras | C99: 2020/00025540A -OB0008/21 | D99: PICOS (20-24) - PISTA DE ATLETISMO Y EDIFICACIÓN ANEXA EN CORRALEJO, T.M. DE LA OLIVA | E99: FINALIZADO; A.C. ; R. P. CONTRATOS | F99: Incluida t.C. documentación, Trasladado añ Servicio 18.11.2021 | G99: 2021-06-30 | H99: =J99-I99 -> 2401084.83 | I99: 168075.94 | J99: 2569160.77 | K99: =H99 -> 2401084.83 | L99: OBRA | M99: ABIERTO | N99: No procede | O99: 12 MESES | P99: 45212000-6 Trabajos de construcción de edificios relacionados con los deportes. 45212200-8 Trabajos de construcción de instalaciones deportivas | Q99: 2021-06-30 | R99: 2021-10-27 | S99: 2021-11-18 | V99: =X99-W99 -> 2004905.83 | W99: 140343.41 | X99: 2145249.24 | Y99: Doña María del Pino González Gordillo y Juan Carlos Pérez Sánchez | Z99: UTE PISTA ATLETISMO CORRALEJO | AA99: U16853566 | AB99: 2021-11-18 | AC99: 2021-11-18
A100: Cultura, Patrimonio Histórico y Difusión Patrimonio Cultural | B100: Museo Arqueológico Insular | C100: 2021/00006999E- SU0019/21 | D100: SUMINISTRO E INSTALACIÓN DE MOBILIARIO PARA EL ALMACÉN DE FONDOS DEL MUSEO ARQUEOLÓGICO DE FUERTEVENTURA | E100: FINALIZADO; A.C. | F100: Finalizado; Trasladado al Servicio:04.11.2021 | G100: 2021-08-31 | H100: =J100-I100 -> 56418.23 | I100: 3949.27 | J100: 60367.5 | K100: 56418.23 | L100: Suministro | M100: SUPERSIMPLIFICADO | N100: No procede | O100: 2 MESES | P100: 39131100 Estanterías de archivo | Q100: 2021-09-07 | R100: 2021-10-20 | S100: 04.11.2021 | V100: =X100-W100 -> 49870 | W100: 3490.9 | X100: 53360.9 | Y100: Don Isidoro Hernández Sánchez | Z100: JOSÉ MANUEL GARREGAL SILVA S.L | AA100: B15720436 | AB100: 2021-10-29 | AC100: 04.11.2021
A101: DEPORTES Y CAZA | B101: Servicio de Deportes | C101: 2019/35298J, SU0018/21 | D101: Suministro de ropa deportiva para los representantes de la isla de Fuerteventura en los “Campeonatos de Canarias” de las competiciones deportivas en edad escolar, en el ámbito autonómico. | E101: FINALIZADO; A.C. | F101: Trasladado al Servicio:03.11.2021 | G101: 2021-09-03 | H101: =J101-I101 -> 18325 | I101: 1282.75 | J101: 19607.75 | K101: 18325 | L101: Suministro | M101: SUPERSIMPLIFICADO | N101: No procede | O101: 4 MESES | P101: 18412000-0 Ropa deportiva | Q101: 2021-09-06 | R101: 2021-10-27 | S101: 03.11.2021 | V101: 12590 | W101: EXENTO | X101: 12590 | Y101: Don Carlos Javier Chocho Cabrera | Z101: CUSTOM SPORWEAR, S.L | AA101: B76279322 | AB101: 2021-10-28 | AC101: 03.11.2021
A102: Políticas Sociales, Formación y Recursos Humanos | B102: Servicio de Asuntos Sociales, Sanidad, Consumo e Inmigración | C102: 2021/00002626L; SE0017/21 | D102: CONTRATO ADMINISTRATIVO DE SERVICIO DE MANTENIMIENTO Y CONSERVACIÓN DE LOS EQUIPOS E INSTALACIONES DE LA PISCINA TERAPÉUTICA PARA PERSONAS CON DISCAPACIDAD DEL CABILDO DE FUERTEVENTURA | E102: FINALIZADO; A.C. | F102: TRASALADO AL SERVICIO:04.11.2021 | G102: 2021-06-14 | H102: 41263.12 | I102: 2888.42 | J102: 44151.54 | K102: 82526.24 | L102: SERVICIO | M102: SIMPLIFICADO | N102: dos posibles prórrogas de seis meses cada una. | O102: 12 MESES | P102: 45259000-7/ 5000000-5 Reparación y mantenimiento de instalaciones | Q102: 2021-06-16 | R102: 2021-10-27 | S102: 04.11.2021 | V102: =X102-W102 -> 33629.44 | W102: 2354.06 | X102: 35983.5 | Y102: María José Cruz Cruz | Z102: GEINVERSTEC INSTALACIONES | AA102: B35929736 | AB102: 2021-11-03 | AC102: 04.11.2021
A103: Empleo, Educación y Juventud | B103: Servicio de Educación y Juventud | C103: 2021/00005363L; SE0031/21 | D103: Contratación del servicio de producción y ejecución de la gala y exposiciones de MaxoArte Joven 2021 | E103: FINALIZADO; A.C. | F103: Devuelto al Servicio:08.11.2021 | G103: 2021-08-20 | H103: =J103-I103 -> 35101.73 | I103: 2457.12 | J103: 37558.85 | K103: 35101.73 | L103: Servicio | M103: Abierto Simplificado art. 159.6 LCSP; Supersimplificado | N103: No procede | O103: 2 | P103: 79952000 Servicios de Eventos 79952100-3 Organización de eventos culturales. 79956000 Servicio de organización de ferias y exposiciones | Q103: 2021-08-25 | R103: 2021-11-03 | S103: 2021-11-08 | V103: =X103-W103 -> 27379.35 | W103: 1916.55 | X103: 29295.9 | Y103: Doña Jessica Reyes espinel, Técnica de Educación y Juventud | Z103: LA MALETA GESTORES DE LA INNOVACIÓN, S.L. | AA103: B76279967 | AB103: 2021-11-04 | AC103: 2021-11-08
A104: RESIDUOS Y GESTION AMBIENTAL | B104: Aguas y residuos | C104: 2021/1965W- SE0030/21 | D104: Servicio limpieza del Complejo Ambietal de Zurita y su entorno reservado a Centro Especial de Empleo de iniciativa social | E104: FINALIZADO; A.C. | F104: Trasladado al servicio:08.11.2021 | G104: 2021-08-18 | H104: 58498.24 | I104: 4094.88 | J104: 62593.12 | K104: 58498.24 | L104: Servicio | M104: Abierto | N104: 2, de 12 m | O104: 12 | P104: 90910000-9; 71421000-5 | Q104: 2021-08-24 | R104: 2021-11-04 | S104: 2021-11-08 | V104: 51000 | W104: 3360 | X104: 51360 | Y104: Gemma Mosquera Paz | Z104: GRANJA ADISFER, S.L. | AA104: B35373828 | AB104: 2021-11-05 | AC104: 2021-11-08
B105: Servicio de Infraestructuras | C105: 2019/13889V; OB0004/21 | D105: Zona de recreo y deportiva en Guisguey. T.M. de Puerto Rosario | E105: FINALIZADO; A.C., R.P. CONTRATOS | F105: Trasladado al Servicio extpe.:11.01.2022 | G105: 2021-05-31 | H105: 148888.19 | I105: 10422.17 | J105: 159310.36 | K105: 148888.19 | L105: Obra | M105: Simplificado | O105: 6 meses | P105: 45212200-8 | Q105: 2021-06-02 | R105: 2021-10-29 | S105: 2021-11-10 | V105: 137721.58 | W105: 9640.51 | X105: 147362.09 | Y105: Jua Carlos Pérez Sánchez; Ana Vázquez; Manuel Martínez Galaco | Z105: CORORASA | AA105: A35091719 | AB105: 2021-11-10 | AC105: 2021-11-10
A106: Servicios Generales | B106: Servicios Generales | C106: 2021/00005203C; SE0022/21 | D106: SERVICIO DE CONSERVACIÓN, MANTENIMIENTO Y ASISTENCIA TÉCNICA DE LAS INSTALACIONES DE BAJA TENSIÓN DE LOS EDIFICIOS DEL CABILDO DE FUERTEVENTURA | E106: FINALIZADO; A.C. | F106: Abierto; regulación armonizada, Trasladado al servicios Generales:20.12.2021 | G106: 2021-06-29 | H106: =J106-I106 -> 84388.23 | I106: 5907.18 | J106: 90295.41 | K106: 337552.92 | L106: Servicio | M106: Abierto | N106: 3 PRORROGAS DE 12 MESES | O106: 12 MESES | P106: 50711000-2: Servicios de reparación y mantenimiento de grupos de equipos eléctricos de equipos 50700000-2: Servicios de reparación y mantenimiento de equipos de edificios | Q106: 2021-06-30 | R106: 2021-11-11 | S106: 2021-11-17 | V106: =X106-W106 -> 62439.88 | W106: 4370.79 | X106: 66810.67 | Y106: Jorge Hernández Hernández, Técnico del Servicio de Servicios Generales | Z106: CLECE, S.A. | AA106: A-80364243 | AB106: 2021-12-18 | AC106: 2021-12-20
A107: Industria, energia, comnercio, Artesania y Actividades Clasificadas | B107: Industria y Actividades Clasificadas | C107: 2020/30935Q; OB0009/21 | D107: Instalación con energías renovables del Polideportivo Insular | E107: FINALIZADO; A.C.; R.P. CONTRATOS | F107: Trasladao al servicio de Industria:18.11.2021 | G107: 2021-07-20 | H107: 76930.28 | I107: 5385.12 | J107: 82315.4 | K107: 76930 | L107: Obras | M107: simplificado | O107: 60 días | P107: 45315600-4; 45310000-3; 45259900-6; 45261215-4 | Q107: 2021-07-21 | R107: 2021-10-26 | S107: 2021-11-16 | V107: 67973.98 | W107: 4758.18 | X107: 72732.16 | Y107: Mateo Aguirar Grimón | Z107: ELECTRIMEGA, S.L. | AA107: B76210632 | AB107: 2021-11-18 | AC107: 2021-11-18
A108: Infraestructuras, Territorio y Sector Primario | B108: Infraestructuras | C108: 2019/00000517W OB0007/21 | D108: ACONDICIONAMIENTO Y MEJORA PAISAJÍSTICA DE ESPACIO PÚBLICO EN LA VILLA DE BETANCURIA FDCAN 2019 | E108: FINALIZADO; A.C.; R.P. CONTRATOS | F108: Trasladado expte. a Infraestructuras:15.12.2021 | G108: 2021-06-29 | H108: 154927.67 | I108: 10844.94 | J108: 165772.61 | K108: 154927.67 | L108: Obra | M108: Abierto Simplificado | N108: No procede | O108: 7 meses | P108: 45262522-6 45233160-8 45233253-7 | Q108: 2021-07-02 | R108: 2021-11-18 | S108: 2021-11-19 | V108: 141526.43 | W108: 9906.85 | X108: 151433.28 | Y108: Beatriz Suárez Bosa; Agustín Medina Hijazo | Z108: CRISPAL ISLAS, S.L. | AA108: B76126804 | AB108: 2021-12-13 | AC108: 2021-12-15
B109: Servicio Infraestructuras | C109: 2020/30687K- SE0027/21 | D109: Servicio para la dirección F., responsable contrat. Y coordinación Seguridad y Salud de las obras Pavimentado c en Betancuria y asfaltado caminos diseminados rurales en Tuineje | E109: FINALIZADO; A.C. | F109: Trasladado expte. al Servicio Infraestructuras:22.11.2021 | G109: 2021-07-08 | I109: 1149.93 | J109: 3534.89 | K109: 16427.6 | L109: Servicio | M109: Simplificado | O109: 2 | P109: 71240000-2 | Q109: 2021-08-18 | R109: 2021-11-12 | S109: 2021-11-22 | Y109: Beatriz Suarez Bosa | AC109: 2021-11-22
C110: 2020/30687K/LOTE 1 | D110: LOTE 1: Servio D.F. y responsable cont. Ejecucion obra: Pavimentado Presidente Hormiga en Betancuria; en Calle Real en Valle Santa Inés; y en calle Buenaventura… | E110: FINALIZADO; A.C. | H110: 3534.89 | I110: 247.44 | J110: 3782.34 | O110: 0.1 | V110: 2085.58 | W110: 145.99 | X110: 2231.57 | Z110: ABRAHAM DOMINGUEZ DE LEÓN | AA110: DNI: 78530753J | AB110: 2021-11-16 | AC110: 2021-11-22
C111: 2020/30687K/LOTE 2 | D111: LOTE 2: Servio D.F. y responsable cont. Ejecucion obra: Plan de asfaltado caminos municipales diseminados Tuineje. Fase II | E111: FINALIZADO; A.C. | H111: 6451.7 | I111: 451.62 | J111: 4072.95 | V111: 3806.5 | W111: 266.45 | X111: 4072.95 | Z111: ABRAHAM DOMINGUEZ DE LEÓN | AA111: DNI: 78530753J
B112: TURISMO | C112: 2020/30687K/LOTE 3 | D112: LOTE 3: Servio D.F. y responsable cont. Ejecucion obra: Plan de asfaltado caminos municipales diseminados Tuineje. Fase III | E112: FINALIZADO; A.C. | H112: 6441.01 | I112: 450.87 | J112: 6891.88 | V112: 3800.2 | W112: 266.01 | X112: 4066.21 | Z112: ABRAHAM DOMINGUEZ DE LEÓN | AA112: DNI: 78530753J
A113: Turismo, Industria y Actividades Clasificadas | B113: Servicio de Turismo | C113: 2021/00010722Q; SE0028/21 | D113: CONTRATO SERVICIOS PLAN ESTRATÉGICO DE TURISMO DE FUERTEVENTURA | E113: FINALIZADO; A.C. | F113: Trasladado expte.a Turismo:24.11.2021 | G113: 2021-08-19 | H113: =J113-I113 -> 56055 | I113: 3923.85 | J113: 59978.85 | K113: 56055 | L113: Servicio | M113: Abierto | N113: No procede | O113: 3 MESES | P113: 79.413000-2 Servicios de consultoría en gestión de marketing | Q113: 2021-08-23 | R113: 2021-11-12 | S113: 2021-11-24 | V113: =X113-W113 -> 39900 | W113: 2793 | X113: 42693 | Y113: Idaira Saavedra Brito | Z113: AUREN CONSULTORES SP, S.L.P. | AA113: B-87352340, | AB113: 2021-11-16 | AC113: 2021-11-24
A114: AGRICULTURA, GANADERÍA Y PESCA | B114: Agricultura | C114: 2021/00016203T (SE0045/21) | D114: SERVICIO DE PRODUCCIÓN Y EJECUCIÓN DE LA FERIA VIRTUAL Y SEMIPRESENCIAL “FEAGA 2021”. | E114: FINALIZADO; A.C | F114: Trasladado expte. Agricultura:03.12.2021 | G114: 2021-10-20 | H114: 68945.56 | I114: 4826.19 | J114: 73771.75 | K114: 68945.56 | L114: Servicio | M114: Abierto, Urgente | O114: 1 | P114: 79950000-8; 79956000-0;79951000-5; 92111250-9 | Q114: 2021-10-20 | R114: 2021-11-23 | S114: 2021-11-26 | V114: 53100 | W114: 3717 | X114: 56817 | Y114: Jefe de Agricultura, Ganadería y Pesca | Z114: GUAXARA CASTAÑEYRA DE LEÓN | AA114: DNI: 78503729Z | AB114: 2021-11-25 | AC114: 2021-11-26
A115: Servicios Generales | B115: Servicios Generales | C115: 2021/00005338V; SE0034/21 | D115: SERVICIO DE MANTENIMIENTO DE LOS CENTROS DE TRANSFORMACIÓN DEL CABILDO DE FUERTEVENTURA | E115: FINALIZADO; A.C. | F115: SUPERSIMPLIFICADO | G115: 2021-08-25 | H115: =J115-I115 -> 7019.22 | I115: 491.35 | J115: 7510.57 | K115: 14038.44 | L115: Servicio | M115: Abierto Simplificado art. 159.6 LCSP | N115: MAXIMO 24 MESES | O115: 24 MESES | P115: 45315400-2 Instalaciones de alta tensión 50532200-5 Servicios de reparación y mantenimiento de transformadores 51111000-3 Servicios de instalación de motores eléctricos, generadores y transformadores | Q115: 2021-08-27 | R115: 2021-11-22 | S115: 2021-11-29 | V115: =X115-W115 -> 6403 | W115: 448.21 | X115: 6851.21 | Y115: Don Jorge Hernández Hernández, Técnico del servicio de Servicios Generales | Z115: ELECNOR, S.A. | AA115: A48027056 | AB115: 2021-11-26 | AC115: 2021-11-29
A116: Infraestructuras Territorio y Sector Primario | B116: Servicio de Infraestructuras | C116: 2020/00029460J; OB0010/21 | D116: PAVIMENTADO DE CALLES EN T.M. BETANCURIA - FDCAN, dividido en tres lotes | E116: FINALIZADO; A.C.; R.P. CONTRATOS | F116: Trasladado expte. A Infraestructuras: 15.12.2021 | G116: 2021-07-20 | H116: 114711.85 | I116: 8029.83 | J116: 122741.68 | K116: 114711.85 | L116: OBRA | M116: ABIERTO SIMPLIFICADO | N116: No procede | P116: 45233222-1: Trabajos de pavimentación y asfaltado | Q116: 2021-07-22 | R116: 2021-12-07 | S116: 2021-12-15 | Y116: Don Abraham Domínguez de León, Ingeniero de Caminos Canales y Puertos | Z116: OBRAS PÚBLICAS CANARIAS S.L. | AA116: B76140953 | AB116: 2021-12-14 | AC116: 2021-12-15
B117: Servicio de Infraestructuras | C117: 2020/00029460J; OB0010/21 | D117: PAVIMENTADO DE CALLES EN T.M. BETANCURIA - FDCAN (LOTE Nº 1) | E117: FINALIZADO; A.C. R.P. CONTRATOS | F117: SIMPLIFICADO | G117: 2021-07-20 | H117: 26613.24 | I117: 1862.93 | J117: =H117+I117 -> 28476.17 | L117: OBRA | M117: ABIERTO SIMPLIFICADO | N117: No procede | O117: 0,33 (10 DIAS) | P117: 45233222-1: Trabajos de pavimentación y asfaltado | Q117: 2021-07-22 | R117: 2021-12-07 | S117: 2021-12-15 | V117: =X117-W117 -> 25098.95 | W117: 1756.93 | X117: 26855.88 | Y117: Don Abraham Domínguez de León, Ingeniero de Caminos Canales y Puertos | Z117: OBRAS PÚBLICAS CANARIAS S.L. | AA117: B76140953 | AB117: 2021-12-14 | AC117: 2021-12-15
B118: Servicio de Infraestructuras | C118: 2020/00029460J; OB0010/21 | D118: PAVIMENTADO DE CALLES EN T.M. BETANCURIA - FDCAN (LOTE Nº 2) | E118: FINALIZADO; A.C.;R.P.CONTRATOS | F118: SIMPLIFICADO | G118: 2021-07-20 | H118: 40418.35 | I118: 2829.28 | J118: =H118+I118 -> 43247.63 | L118: OBRA | M118: ABIERTO SIMPLIFICADO | N118: No procede | O118: 0,33 (10 DIAS) | P118: 45233222-1: Trabajos de pavimentación y asfaltado | Q118: 2021-07-22 | R118: 2021-12-07 | S118: 2021-12-15 | V118: 38118.55 | W118: 2668.3 | X118: 40786.85 | Y118: Don Abraham Domínguez de León, Ingeniero de Caminos Canales y Puertos | Z118: OBRAS PÚBLICAS CANARIAS S.L. | AA118: B76140953 | AB118: 2021-12-14 | AC118: 2021-12-15
B119: Servicio de Infraestructuras | C119: 2020/00029460J;OB0010/21 | D119: PAVIMENTADO DE CALLES EN T.M. BETANCURIA - FDCAN (LOTE Nº 3) | E119: FINALIZADO; A.C.;R.P.CONTRATOS | F119: SIMPLIFICADO | G119: 2021-07-20 | H119: 47680.26 | I119: 3337.62 | J119: =H119+I119 -> 51017.88 | L119: OBRA | M119: ABIERTO SIMPLIFICADO | N119: No procede | O119: 0,33 (10 DIAS) | P119: 45233222-1: Trabajos de pavimentación y asfaltado | Q119: 2021-07-22 | R119: 2021-12-07 | S119: 2021-12-15 | V119: 44967.25 | W119: 3147.71 | X119: 48114.96 | Y119: Don Abraham Domínguez de León, Ingeniero de Caminos Canales y Puertos | Z119: OBRAS PÚBLICAS CANARIAS S.L. | AA119: B76140953 | AB119: 2021-12-14 | AC119: 2021-12-15
B120: Servicio Infraestructuras | C120: 2020/30474S, OB006/21 | D120: Asfaltado caminos municipales de titularidad publica diseminados Tuineje, integrado por dos lotes | E120: FINALIZADO, Trasladado expte. Servicio:21.12.2021 | F120: SIMPLIFICADO | G120: 2021-06-17 | H120: 557432.84 | I120: 39020.30 | J120: 596453.14 | K120: 557432.84 | L120: OBRAS | M120: ABIERTO SIMPLIFICADO | P120: 45233222-1 | Q120: 2021-06-21 | R120: 2021-11-23 | S120: 2021-12-20 | AC120: 2021-12-20
C121: 2020/30474S, OB006/21; LOTE 1 | D121: Asfaltado caminos municipales de titularidad publica diseminados Tuineje, Fase II | E121: FINALIZADO ok | H121: 264068.21 | I121: 18484.77 | J121: 282552.98 | O121: 1 MES | V121: 264068.21 | W121: 18484.77 | X121: 282552.98 | Y121: Abrahan Domínguez | Z121: CRISPAL ISLAS, S.L. | AA121: B76126804 | AB121: 2021-12-17
C122: 2020/30474S, OB006/21; LOTE 2 | D122: Asfaltado caminos municipales de titularidad publica diseminados Tuineje, Fase III | E122: FINALIZADO | H122: 261174.86 | I122: 18282.24 | J122: 279457.1 | O122: 1 MES | V122: 261174.86 | W122: 18282.24 | X122: 279457.1 | Z122: OBRAS PÚBLICAS CANARIAS, S.L. | AA122: B76140953 | AB122: 2021-11-29
A123: Infraestructuras, Territorio y Sector Primario | B123: Servicio de Infraestructuras | C123: 2020/00004613X; OB0024/21 | D123: FDCAN ACONDICIONAMIENTO DE MÁRGENES Y ACCESOS EN EL BARRANCO DE BÁCHER. MONTAÑA HENDIDA. T.M. DE TUINEJE | E123: FINALIZADO; A.C.; R.P. CONTRATOS | F123: Trasladado al Servicio extpe.:03.01.2022; incluidoa documentación expte. ver | G123: 2021-11-23 | H123: =J123-I123 -> 1604503.46 | I123: 112315.24 | J123: 1716818.7 | K123: 1604503.46 | L123: OBRA | M123: ABIERTO SIMPLIFICADO | O123: 16 meses | P123: 45246100-4: Construcción de muros de encauzamiento | Q123: 2021-11-23 | R123: 2021-11-28 | S123: 03.12.2021 | V123: =X123-W123 -> 1250710.45 | W123: 87549.73 | X123: 1338260.18 | Y123: Doña Beatriz Suarez Bosa | Z123: CONSTRUCCIONES RODRÍGUEZ RAMÍREZ S.A. (CORORASA), | AA123: A35091719 | AB123: 2021-12-30 | AC123: 03.01.2022
A124: Infraestructuras, Territorio y Sector Primario | B124: Servicio de Infraestructuras | C124: 2020/00022850G; OB002/21 | D124: PICOS (20-24) - RED DE SANEAMIENTO Y PLUVIALES CALLE ARAGÓN, PUERTO DEL ROSARIO | E124: ADJUDICADO | G124: 2021-11-04 | H124: =J124-I124 -> 608812.64 | I124: 42616.88 | J124: 651429.52 | K124: 608812.64 | L124: OBRA | M124: ABIERTO SIMPLIFICADO | O124: 5 meses | P124: 45232410-9: OBRAS DE SANEAMIENTO 45233200-1: TRABAJOS DIVERSOS DE PAVIMENTACIÓN | Q124: 2021-11-04 | R124: 2021-12-29 | S124: 2022-01-03 | V124: =X124-W124 -> 531797.84 | W124: 37225.85 | X124: 569023.69 | Y124: Manuel Martínez Calaco | Z124: OBRAS PÚBLICAS CANARIAS S.L., | AA124: B76140953
A125: PRESIDENCIA | B125: Servicio Gestión de Bienes | C125: 2021/5478L- AE001/21 | D125: ARRENDAMIENTO INMUEBLE PARA UBICACIÓN PERSONAL CABILDO FUERTEVENTURA, ENTRE OTROS DE RECURSOS HUMANOS | E125: FINALIZADO; A.C. | F125: Expte. en Gestion de Bienes, INCLUIDAD COCUMENTACION A.C. | G125: 2021-08-11 | H125: 206400 | I125: 14448 | J125: 220848 | K125: 206400 | L125: Privado | M125: Abierto | N125: 12 | O125: 4 años | P125: 70220000-9 | Q125: 2021-08-12 | R125: 2021-12-23 | S125: 2022-01-05 | V125: 206400 | W125: 14448 | X125: 220848 | Y125: Cristina Arribas | Z125: PALAFUSA, S.L.- SQUALE INTERNACIONAL | AA125: B35001940; B35078344 | AB125: 2021-12-23 | AC125: 2022-02-21
B126: Servicio Educación y Juventud | C126: 2020/21037P; SU0006/21 | D126: SUMINISTRO MATERIAL INVENTARIABLE-INSTRUMENTOS MUSICALES | E126: FINALIZADO; A.C. | F126: Trasladado al Servicio:21.10.2021 | G126: 2021-05-10 | H126: 90235.33 | I126: 6316.47 | J126: 96551.8 | K126: 107423.01 | L126: SUMINISTRO | M126: Abierto, simplificado | O126: 30 d | P126: 37310000-4: 37312000-8: | Q126: 2021-05-12 | R126: 2021-07-16 | S126: 2021-07-22 | V126: 90235.33 | W126: 6316.47 | X126: 96551.8 | Y126: Javier Santos Alocen | Z126: HAZEN DSITRIBUIDORA GENERAL DE PIANOS, S.A. | AA126: A28179836 | AB126: 2021-07-21 | AC126: 2021-07-23
B127: Servicio de Informática y Nuevas Tecnologías | C127: 2021/10139P, SU002/21 | D127: SUMINISTRO E INSTALACIÓN DE APLICACIONES DE FIRMA ELECTRÓNICA EN LOS APLICATIVOS CONTABLES Y CONTABILIDAD ANALÍTICA, Y DE FORMACIÓN Y MANTENIMIENTO APLICACIONES | E127: FINALIZADO; A.C. | F127: Trasladado al Servicio Informática:05.01.2021 | G127: 2021-11-25 | H127: 270285 | I127: 18919.95 | J127: 289204.95 | K127: 270285 | L127: SUMINISTRO, SERVICIO | M127: P/N sin publicidad | O127: 36m | P127: 48920000-3; 72265000-0; 72267100-0 | R127: 2021-12-17 | S127: 2022-01-05 | V127: 289204.95 | W127: 18919.95 | X127: 289204.95 | Y127: Francisco Padilla Castillo | Z127: AYTOS SOLUCIONES INFORMATICAS, S.L.U. | AA127: B41632332 | AB127: 2021-12-21 | AC127: 2022-01-05
G139: =F142 -> 0

Sheet EXPEDIENTES 2022 (hidden)
A1: CONSEJERIA | B1: SERVICIO | C1: Nº EXP. | D1: NOMBRE DE EXPEDIENTE | E1: SITUACIÓN ACTUAL | F1: OBSERVACIONES | G1: FECHA APROBACIÓN EXPEDIENTE | H1: IMPORTE DE LICITACIÓN SIN IGIC | I1: IGIC | J1: IMPORTE DE LICITACIÓN CON IGIC | K1: VALOR ESTIMADO SIN IGIC | L1: TIPO DE CONTRATO | M1: TRÁMITE -PROCEDIMIENTO | N1: PRÓRROGA (en meses) | O1: PLAZO DE EJECUCIÓN (en meses) | P1: CPV | Q1: FECHA PUBLICACIÓN LICITACIÓN | R1: FECHA DE ADJUDICACIÓN | S1: FECHA PUBLICACIÓN ADJUDICACIÓN | T1: FECHA DESIERTO | U1: FECHA RENUNCIA O DESISTIMIENTO | V1: IMPORTE DE ADJUDICACIÓN SIN IGIC | W1: IGIC ADJUDICACIÓN | X1: IMPORTE DE ADJUDICACIÓN CON IGIC | Y1: RESPONSABLE CONTRATO | Z1: CONTRATISTA NOMBRE | AA1: CONTRATISTA CIF | AB1: FECHA FORMALIZACIÓN CONTRATO | AC1: FECHA PUBLICACIÓN CONTRATO
A2: Asesoría Jurídica | B2: Asesoría Jurídica | C2: 2019/28395X | D2: PRORROGA CONTRATO EUGENIA -MODIFICACIÓN ART.17 (MODFICADO CONTRATO | E2: Modificado | F2: ENTRADA:09.10.2020- MODIFICADO CONTRATO: Devuelto expte. a Asesoría Jurídica:31.10.2020 | M2: Modificado
A3: Servicio de Asuntos Sociales, Sanidad, Consumo e Inmigración | B3: Asuntos Sociales | C3: 2020/00017193M; SE0049/20 | D3: CONTRATO ADMINISTRATIVO DE SERVICIOS PARA AUXILIAR AL CABILDO DE FUERTEVENTURA EN LA GESTIÓN DEL SERVICIO DE LA RESIDENCIA INSULAR Y CENTROS DE DIA PARA PERSONAS DEPENDIENTES POR DISCAPACIDAD INTELECTUAL. | E3: Adjudicado, por precios unitarios; Expte. envio document. A. Cuentas; FINALIZADO; | F3: Este contrato se envío al T. Administrativo de Contratos y se adjudico por Consejo G. el13.08.2021 | G3: 2020-12-10 | H3: 10835401.2 | I3: 0 | J3: 10835401.2 | K3: 10835401.2 | L3: Servicio (Contrato mixto servicio- suministro) | M3: Abierto (Regulación armonizada) | N3: No procede | O3: 4 años | P3: 85312000-9 85312100-0 85311000-2 | Q3: 2020-12-14 | R3: 2021-08-13 | S3: 2021-10-20 | V3: 9101737.01 | W3: 0 | X3: 9101737.01 | Y3: Doña Auxiliadora Cabrera Padilla y Doña Nereida Gil Betancor | Z3: ISCAN SERVICIOS INTEGRALES S.L. | AA3: B35853738
A4: Políticas Sociales, Formación y Recursos Humanos | B4: Asuntos Sociales | C4: 2020/6217G | D4: Emergencia Intervención social suministro kiks productos primera necesidadl; No estamos solos, juntos lo lograremos- Dividido en 2 lotes | E4: Emergencia | F4: devuelto expte. | G4: 2020-03-18 | L4: Suministro | M4: Emergencia COVID-19 | N4: posibilidad de prórroga encaso de seguir con estado de alarma | O4: 3 meses | Q4: 13/04/2020- Publicación acuerdo adjudicar | R4: 2020-03-18 | Y4: Luz Divina Cabrera Travieso (Funcionaria del Cabildo de Fuerteventura) | Z4: JOSÉ PADILLA FRÁNCES S.L | AA4: B-3525422
A5: Políticas Sociales, Formación y Recursos Humanos | B5: Asuntos Sociales | C5: 2020/7008J | D5: Contrato Emergencia Suministro de lote de alimentación de primera necesidad | E5: Emergencia | F5: Traslado expediente a Servicios Sociales el 07/05/2020 | L5: Suministro | M5: Emergencia COVID-19
A6: Cultura, Patrimonio Histórico y Difusión Patrimonio Cultural | B6: Centro de Arte y Exposiciones | C6: 2019/00011759A- Plyca SE0028/20 | D6: SERVICIO DE MONTAJE Y DESMONTAJE DE EXPOSICIONES, APOYO A LA ACTIVIDAD DEL PALACIO DE FORMACIÓN Y CONGRESOS DE FUERTEVENTURA Y MANIPULACIÓN DE LA COLECCIÓN DE ARTE, ORGANIZACIÓN DEL DEPÓSITO DE ARTE DEL CABILDO INSULAR DE FUERTEVENTURA, EN EL CENTRO DE ARTE JUAN ISMAEL Y CENTROS ADSCRITOS | E6: Lote 1; Desistido procedimiento | F6: 2 LOTES | G6: 2020-09-02 | H6: 32933.13 | I6: 2305.32 | J6: 35238.45 | K6: 188231.7 | L6: Servicio | M6: Abierto | N6: Períodos de 1 año | O6: 1 año | P6: 63100000-0/ 63110000-3/ 79950000-8/ 79956000-0/ 92521000-9 | Q6: 2020-09-09 | R6: Desistido proce: 14/06/2021
A7: Cultura, Patrimonio Histórico y Difusión Patrimonio Cultural | B7: Centro de Arte y Exposiciones | C7: 2019/00011759A- Plyca SE0028/20 | D7: SERVICIO DE MONTAJE Y DESMONTAJE DE EXPOSICIONES, APOYO A LA ACTIVIDAD DEL PALACIO DE FORMACIÓN Y CONGRESOS DE FUERTEVENTURA Y MANIPULACIÓN DE LA COLECCIÓN DE ARTE, ORGANIZACIÓN DEL DEPÓSITO DE ARTE DEL CABILDO INSULAR DE FUERTEVENTURA, EN EL CENTRO DE ARTE JUAN ISMAEL Y CENTROS ADSCRITOS | E7: Lote 2; Desistido procedimiento | F7: 2 LOTES | G7: 2020-09-02 | H7: 61182.72 | I7: 4282.8 | J7: 65465.52 | K7: 188231.7 | L7: Servicio | M7: Abierto | N7: Períodos de 1 año | O7: 1 año | P7: 63100000-0/ 63110000-3/ 79950000-8/ 79956000-0/ 92521000-9 | Q7: 2020-09-09
A8: Cultura, Patrimonio Histórico y Difusión Patrimonio Cultural | B8: Cultura | C8: 2019/32623Y | D8: SUMINISTRO Y SERVICIO DE ASISTENCIA TÉCNICA PARA ILUMINACIÓN, SONIDO, AUDIOVISUALES E INFRAESTRUCTURAS PARA EVENTOS DEL CABILDO DE FUERTEVENTURA | E8: DEVUELTO SUBSANAR; Anulado expte. | F8: Devuelto a Cultura 21.04.2020. PCAP terminado a la espera de indicaciones (NERE)
A9: Cultura, Patrimonio Histórico y Difusión Patrimonio Cultural | B9: Cultura | C9: 2020/00022111R- SU0016/20 | D9: SUMINISTRO DE DOS PIANOS DE COLA PARA SU UTILIZACIÓN EN LAS DIFERENTES ACTIVIDADES CULTURALES QUE SE ORGANIZAN REGULARMENTE EN EL AUDITORIO INSULAR DE FUERTEVENTURA Y EN EL CENTRO POLIVALENTE MANUEL SANCHEZ GONZÁLEZ. | E9: Suspendido contrato:06.06.2021 | F9: Entrada: 13/10/20- | G9: 2020-11-10 | H9: 79253.03 | I9: 5547.71 | J9: 84800.74 | K9: 79253.03 | L9: Suministro | M9: Abierto | O9: plazo máximo de 60 DÍAS a partir | P9: 37311100-2 | Q9: 2020-11-12
A10: Deportes, Seguridad y Emergencias | B10: Deportes | C10: 2020/10019F | D10: CONTRATACIÓN DE LOS SERVICIOS DE REDACCIÓN, DIRECCIÓN E IMPLANTACIÓN Y ACTUALIZACIÓN DEL PLAN DE AUTOPROTECCIÓN DE LA VUELTA A FUERTEVENTURA EN KAYAK 2021-2024. | E10: DEVUELTO SUBSANAR | F10: ENTRADA:27.05.2020- Devuelto al servicio: 23/07/20 (Roberto)
A11: Deportes, Seguridad y Emergencias | B11: Deportes | C11: 2020/7578P(NEREIDA) | D11: CONTRATO TRANVERSAL DEL SERVICIO TRANSPORTE DISCRECIONAL CON CONDUCTOR DE COLECTIVOS-GRUPOS MEDIANTE GUAGUAS-AUTOBUSES PARA LAS ACTIVIDADES ORGANIZADAS POR EL EXCMO. CABILDO DE FUERTEVENTURA Y VEHÍCULOS DE ALQUILER. | E11: ENTRADA | F11: Entrada: 21.04.2020 DEVUELTO AL SERVICIO 01.07.2020-Entrada: 29/09/20 (NEREIDA)
A12: Presidencia, Hacienda y Promoción Económica | B12: Desarrollo Economico+B14:U14 | C12: 2020/00015400Y- SE0032/20 | D12: PROYECTO FORMATIVO CUALIFÍCATE 2020; INTEGRADO POR 23 LOTES | E12: FINALIZADO | F12: (DOUE)- Exento de IGIC- Dividido en 23 Lotes | G12: 2020-10-19 | H12: 1915200 | I12: 0 | J12: 1915200 | K12: 1915200 | L12: Servicio | M12: Abierto- Regulación armonizada | N12: No procede | O12: 1 año | P12: 80530000-8 | Q12: 2020-10-19 | R12: 16/12/2021; 27/12/2021 | S12: 2021-12-27 | AB12: 2022-02-17 | AC12: 2022-02-22
A13: Empleo, Educación y Juventud | B13: Educación y Juventud | C13: 2020/00005217Q | D13: CONTRATACIÓN DE SERVICIOS DE AGENCIA DE VIAJES PARA EL PROGRAMA "BELINGUEANDO". | E13: DEVUELTO SUBSANAR | F13: Entrada: 09.09.2020; Devuelto al Servicio para subsanar:25.09.2020
A14: Empleo, Educación y Juventud | B14: Educación y Juventud | C14: 2020/00007280D | D14: ADQUISICIÓN 229 TABLETS CONVENIO EDUCACIÓN | E14: ASESORIA JURIDICA | F14: Entrada: 03/11/20 Solicitado informe jurídico:13.11.2020
A15: Empleo, Educación y Juventud | B15: Educación y Juventud | C15: 2020/20229M | D15: CONTRATACIÓN DEL SERVICIO DE PRODUCCIÓN AUDIOVISUAL DEL CONCURSO DENOMINADO "FUERTEVENTURA TESORO AUTÉNTICO" | E15: ENTRADA | F15: ENTRADA:17.09.2020-DEVUELTO 30/09/2020- ENTRADA 10/11/2020
A16: Empleo, Educación y Juventud | B16: Educación y Juventud | C16: 2020/20945P; SE0032/21 | D16: Fuerteventura Al Golpito | E16: FINALIZADO; 2022 | F16: Trasladado expte. al Servicio:18.01.2022 | G16: 2021-08-19 | H16: 51306.55 | I16: 3591.46 | J16: 54898.01 | K16: 102613.1 | L16: Servicio | M16: Abierto | N16: 12 | O16: 12 | P16: 79952000-2 | Q16: 2021-08-26 | R16: 2021-12-13 | S16: 2021-12-16 | V16: 50000 | W16: 3500 | X16: 53500 | Y16: Jésica Reyes Espinel | Z16: NORTE Y SOLANA, S.L. | AA16: B35560176 | AB16: 2022-01-17 | AC16: 2022-01-18 | AD16: 2022
A17: Industria, Comercio, Transportes, Accesibilidad y Movilidad Sostenible | B17: Industria y Actividades Clasificadas | C17: 2020/00007584Z | D17: TRASPASO DE ACTIVIDAD DE IBIL A REPSOL | E17: ENTRADA | F17: Entrada:24.09.2020; Pendiente que la empresa Repsol se aclare (Silvia)
A18: Industria, Comercio, Transportes, Accesibilidad y Movilidad Sostenible | B18: Industria y Actividades Clasificadas | C18: 2020/00008185V | D18: CESIÓN DE USO DE NAVES INDUSTRIALES EN LLANOS DE LA HIGUERA | E18: FINALIZADO | F18: Entrada: 14/04/2020; Expte. remitido a Gestión de bienes (Cristina Arrivas:18.05.2020, Lo tramitará ella)
A19: Infraestructuras, Territorio y Sector Primario | B19: Infraestructuras | C19: 2019/00038607X- Plyca SE0027/20; 2 LOTES | D19: Dirección facultativa de la obra, de las instalaciones y la coordinación de seguridad y salud de la obra correspondiente al proyecto denominado RESIDENCIA Y CENTRO DE DÍA PARA PERSONAS MAYORES DEPENDIENTES, en Puerto del Rosario | E19: FINALIZADO; A.C.
A20: Infraestructuras, Territorio y Sector Primario | B20: Infraestructuras | C20: 2019/2041L; OB0003/21 | D20: SUSTITUCION DE CESPED ARTIFICIAL EN CAMPOS DE FUTBOL 1 Y 2 "FRANCISCO MELIAN" | E20: FINALIZADO | F20: Trasladado al Servicio:26.08.2021; Documentación enviar al Tribunal Cuentas | J20: 1292078.51
A21: Infraestructuras, Territorio y Sector Primario | B21: Infraestructuras | C21: 2019/38480K- Plyca SE0029/20 | D21: CONTRATO DE SERVICIOS PARA LA REDACCIÓN DE PROYECTOS Y DIRECCIÓN FACULTATIVA DE LAS OBRAS Y COORDINACIÓN DE SEGURIDAD Y SALUD DE LAS MISMAS EN CENTROS DE LA RED DE MUSEOS: MIRADOR DE MORRO VELOSA, EN EL FARO DEL TOSTÓN Y CUEVA DEL LLANO | E21: Desierto - Lote 2 | F21: Dividido en 9 lotes | G21: 2020-09-14 | H21: 6577.21 | I21: 460.4 | J21: 7037.61 | K21: 6577.21 | L21: Servicio | M21: Abierto simplificado | N21: No procede | O21: Hasta finalización | P21: 71240000-2 | Q21: 2020-09-14 | T21: 2021-03-25
A22: Infraestructuras, Territorio y Sector Primario | B22: Infraestructuras | C22: 2019/38480K- Plyca SE0029/20 | D22: CONTRATO DE SERVICIOS PARA LA REDACCIÓN DE PROYECTOS Y DIRECCIÓN FACULTATIVA DE LAS OBRAS Y COORDINACIÓN DE SEGURIDAD Y SALUD DE LAS MISMAS EN CENTROS DE LA RED DE MUSEOS: MIRADOR DE MORRO VELOSA, EN EL FARO DEL TOSTÓN Y CUEVA DEL LLANO | E22: Desierto - Lote 5; FINALIZADO | F22: Dividido en 9 lotes | G22: 2020-09-14 | H22: 9462.99 | I22: 662.41 | J22: 10125.4 | K22: 9462.99 | L22: Servicio | M22: Abierto simplificado | N22: No procede | O22: Hasta finalización | P22: 71240000-2 | Q22: 2020-09-14 | T22: 2021-03-25
A23: Infraestructuras, Territorio y Sector Primario | B23: Infraestructuras | C23: 2019/38480K- Plyca SE0029/20 | D23: CONTRATO DE SERVICIOS PARA LA REDACCIÓN DE PROYECTOS Y DIRECCIÓN FACULTATIVA DE LAS OBRAS Y COORDINACIÓN DE SEGURIDAD Y SALUD DE LAS MISMAS EN CENTROS DE LA RED DE MUSEOS: MIRADOR DE MORRO VELOSA, EN EL FARO DEL TOSTÓN Y CUEVA DEL LLANO | E23: Desierto - Lote 8: FINALIZADO | F23: Dividido en 9 lotes | G23: 2020-09-14 | H23: 1389.06 | I23: 97.23 | J23: 1486.29 | K23: 1389.06 | L23: Servicio | M23: Abierto simplificado | N23: No procede | O23: Hasta finalización | P23: 1240000-2 | Q23: 2020-09-14 | T23: 2021-03-25
A24: Infraestructuras, Territorio y Sector Primario | B24: Infraestructuras | C24: 2019/38480K- Plyca SE0029/20 | D24: CONTRATO DE SERVICIOS PARA LA REDACCIÓN DE PROYECTOS Y DIRECCIÓN FACULTATIVA DE LAS OBRAS Y COORDINACIÓN DE SEGURIDAD Y SALUD DE LAS MISMAS EN CENTROS DE LA RED DE MUSEOS: MIRADOR DE MORRO VELOSA, EN EL FARO DEL TOSTÓN Y CUEVA DEL LLANO | E24: Desierto - Lote 9; Finalizado | F24: Dividido en 9 lotes | G24: 2020-09-14 | H24: 639.9 | I24: 44.79 | J24: 684.69 | K24: 639.9 | L24: Servicio | M24: Abierto simplificado | N24: No procede | O24: Hasta finalización | P24: 1240000-2 | Q24: 2020-09-14 | T24: 2021-03-25
A25: Infraestructuras, Territorio y Sector Primario | B25: Infraestructuras | C25: 2020/00020843K- OB0014/20 | D25: ASFALTADO DE CALLES EN T.M. BETANCURIA, integrado por los 4 lotes | E25: FINALIZADO | F25: Trasladado expte. al servicio Infraestructuras:24.06.2021 | G25: 2020-11-10 | H25: 287587.78 | I25: 20131.14 | J25: 307718.92 | K25: 287587.78 | L25: Obra | M25: Abierto simplificado | O25: Un (1) mes partir del día siguiente al de la firma del acta de comprobación del replanteo. | P25: 45233222-1 | Q25: 2020-11-13 | R25: 2021-05-17 | S25: 2021-05-28 | AC25: 2021-06-24
A26: Infraestructuras, Territorio y Sector Primario | B26: Obras y Maquinaria | C26: 2018/67L | D26: Contratación reservada a centros especiales de empleo, de iniciativa social (d.a. 4ª LCSP), para el servicio de limpieza de vehículos del Cabildo de Fuerteventura | E26: DEVUELTO SUBSANAR | F26: Propuesta aprobación en intervención:18.10.2019 Devuelto al servicio 12.03.2020 para subsanar RC2020, INFORME CAPACIDAD FINANCIERA...
A27: Infraestructuras, Territorio y Sector Primario | B27: Obras y Maquinaria | C27: 2018/9H SE0008/20 | D27: Servicio de mantenimiento preventivo y correctivo del parque móvil del Cabildo de Fuerteventura y otras entidades adscritas | E27: Desierto- Lote 4 | F27: Devuelto expte. a Obras y Maquinaria:09/07/2021 | G27: 2020-02-24 | H27: 7.600,00€ | I27: 532,00€ | J27: 8.132,00€ | K27: 518760 | L27: Servicio | M27: Abierto- Regulación armonizada | N27: 1 año (sin que su vigencia puede exceder de cuatro años) | O27: 1 año | P27: 50000000-5 50112000-3 50114000-7 50115000-4 | Q27: 2020-05-04 | T27: 20/07/2020 (Lote 4 y 6)
A28: Infraestructuras, Territorio y Sector Primario | B28: Obras y Maquinaria | C28: 2018/9H SE0008/20 | D28: Servicio de mantenimiento preventivo y correctivo del parque móvil del Cabildo de Fuerteventura y otras entidades adscritas | E28: Desierto- Lote 6 | G28: 2020-02-24 | H28: 3.540,00€ | I28: 247,80€ | J28: 3.787,80€ | K28: 518760 | L28: Servicio | M28: Abierto- Regulación armonizada | N28: 1 año (sin que su vigencia puede exceder de cuatro años) | O28: 1 año | P28: 50000000-5 50112000-3 50114000-7 50115000-4 | Q28: 2020-05-04 | T28: 20/07/2020 (Lote 4 y 6)
A29: Red de Centros | B29: Red de Museos | C29: 2019/00027721A | D29: Servicio de recogida, transporte y custodia fondos provenientes de recaudación de la Red de Centros | E29: DEVUELTO SUBSANAR | F29: ENTRADA:15.06.2020 DEVUELTO AL SERVICIO PARA SUBSANARA 23.07.2020; ENTRADA:09.10.2020 DEVUELTO SUBSANAR 15.10.2020
A30: Cultura, Patrimonio Histórico y Difusión Patrimonio Cultural | B30: Red de Museos | C30: 2020/9754E | D30: Creación del Centro de Interpretación Montaña de Tindaya, Valores Naturales y Culturales propios. | E30: ENTRADA | F30: Entrada: 15/09/20-DEVUELTO 28/09/2020--ENTRADA 11/11/2020
A31: Infraestructuras, Territorio y Sector Primario | B31: Servicios Generales | C31: 2019/00012519G | D31: MANTENIMIENTO DE LA DOMÓTICA DEL PALACIO DE FORMACIÓN Y CONGRESOS | E31: ASESORIA JURIDICA | F31: ENTRADA:23.06.2020.SOLICITADO INFORME ASESORÍA JURÍDICA 30.10.2020
A32: Infraestructuras, Territorio y Sector Primario | B32: Servicios Generales | C32: 2019/00031084P- Plyca SU0014/20 | D32: Suministro de material de oficina no inventariable | E32: Desierto- Lote 2 | F32: Lote 2 y 3 -Desierto | G32: 2020-09-07 | H32: 16.767,38€ | I32: 503,02€ | J32: 17.270,40€ | K32: 220338,56 (total contrato) | L32: Suministro | M32: Abierto- DOUE | N32: 3 prórrogas anuales | O32: 1 año | P32: 30190000-7 | Q32: 2020-09-10 | T32: Lote 2 Lote 3 17/11/2020
A33: Infraestructuras, Territorio y Sector Primario | B33: Servicios Generales | C33: 2019/00031084P- Plyca SU0014/20 | D33: Suministro de material de oficina no inventariable | E33: Desierto- Lote 3 | F33: Lote 2 y 3 -Desierto | G33: 2020-09-07 | H33: 30977.33 | I33: 929.32 | J33: 31906.65 | K33: 220338,56 (total contrato) | L33: Suministro | M33: Abierto- DOUE | N33: 3 prórrogas anuales | O33: 1 año | P33: 30190000-7 | Q33: 2020-09-10 | T33: Lote 2 Lote 3 17/11/2020
A34: Políticas Sociales, Formación y Recursos Humanos | B34: Servicios Sociales | C34: 2019/00013398D | D34: Contrato de servicio para la asistencia al área de bienestar social del cabildo de Fuerteventura en la preparación de los expedientes de contratación | E34: DEVUELTO SUBSANAR | F34: devuelto: 01.10.2019 (informe jurídico desfav: necesita informe de RRHH justificando la insuficiencia de medios).
A35: Industria, Comercio, Transportes, Accesibilidad y Movilidad Sostenible | B35: Transportes y Comunicaciones | C35: 2020/12960 | D35: Contrato suministro e instalación de material inventariable para infraestructuras de tranasporte interurbano | E35: DEVUELTO SUBSANAR | F35: Memoria, estudio económico, criterios adjudicación, duración del contrato, plazo de garantía de ejecución. 13.11.20
C36: 2021/4532Q | D36: MODIFICACIÓN CONTRATO DE SERVICIO DE CORREO ELECTRONICO | E36: FINALIZADO | F36: DEVO
A37: Cultura, Patrimonio Histórico y Difusión Patrimonio Cultural | B37: Centro de Arte y Exposiciones | C37: 2019/00011759A | D37: LOTE Nº 1 CENTRO DE ARTE JUAN ISMAEL | E37: Desierto | F37: Abierto | G37: 2020-09-02 | H37: 32933.13 | I37: 2305.32 | J37: 35238.45
A38: Cultura, Patrimonio Histórico y Difusión Patrimonio Cultural | B38: Centro de Arte y Exposiciones | C38: 2019/00011759A | D38: LOTE Nº 2 PALACIO DE FORMACIÓN Y CONGRESOS | E38: Desierto | F38: Abierto | G38: 2020-09-02 | H38: 61182.72 | I38: 4282.8 | J38: 65465.52
A39: Industria, Comercio, Transportes, Accesibilidad y Movilidad Sostenible | B39: Industria y Actividades Clasificadas | C39: 2020/2777Z LOTE Nº2 | D39: Suministro de 5 vehículos 100 por cien eléctricos. DOS LOTES. | E39: Adjudicado | R39: 2021-06-01 | V39: 135600 | W39: 0 | X39: 135600
A40: Cultura, Patrimonio Histórico y Difusión Patrimonio Cultural | B40: Cultura | C40: 2020/00022111R | D40: SUMINISTRO DE DOS PIANOS DE COLA PARA SU UTILIZACIÓN EN LAS DIFERENTES ACTIVIDADES CULTURALES QUE SE ORGANIZAN REGULARMENTE EN EL AUDITORIO INSULAR DE FUERTEVENTURA Y EN EL CENTRO POLIVALENTE MANUEL SANCHEZ GONZÁLEZ. | E40: Adjudicado
A41: Infraestructuras, Territorio y Sector Primario | B41: Obras y Maquinaria | C41: 2018/9H | D41: Servicio de mantenimiento preventivo y correctivo del parque móvil del Cabildo de Fuerteventura y otras entidades adscritas | E41: Adjudicado- Lote 3 | X41: 9041.5
A42: Infraestructuras, Territorio y Sector Primario | B42: Obras y Maquinaria | C42: 2018/9H | D42: Servicio de mantenimiento preventivo y correctivo del parque móvil del Cabildo de Fuerteventura y otras entidades adscritas | E42: Adjudicado- Lote 5 | X42: 10272
A43: Cultura, Patrimonio Histórico y Difusión Patrimonio Cultural | B43: Cultura | C43: 2021/00009542N; SE0013/21 | D43: CONTRATO DE SERVICIOS TÉCNICOS DE SONIDO, ILUMINACIÓN, AUDIOVISUALES, ESTRUCTURAS Y TRABAJOS AUXILIARES PARA EL FESTIVAL FUERTEVENTURA EN MÚSICA 2021 | E43: FINALIZADO; A.C. | F43: no celebrado | G43: 2021-06-16 | H43: 97834.51 | I43: 6848.42 | J43: 104682.93 | K43: 97834.51 | L43: SERVICIO | M43: ABIERTO, URGENTE | O43: 2 DIAS | Q43: 2021-06-11 | R43: 2021-06-25 | S43: 2021-06-29 | V43: 97800 | W43: 6846 | X43: 104646 | Z43: AUDIOLUZ CANARIAS S.L | AA43: B35294743 | AB43: 2021-06-26 | AC43: 2021-06-29
A44: Cultura, Patrimonio Histórico y Difusión Patrimonio Cultural | B44: Cultura | C44: 2021/00009543J; SE0014/21 | D44: CONTRATO DE SERVICIOS COMPLEMENTRIOS Y/O AUXILIARES ASÍ COMO LA LOGÍSTICA PARA EL FESTIVAL FUERTEVENTURA EN MÚSICA 2021 | E44: FINALIZADO,A.C. | F44: No se celebró este contrato. Trasladado al Servicio:02.07.2021 | G44: 2021-06-25 | H44: 94669.62 | I44: 6626.87 | J44: 101296.49 | L44: SERVICIOS | M44: ABIERTO, URGENCIA | O44: 0.2 | Q44: 2021-06-11 | R44: 2021-06-25 | S44: 2021-06-29 | V44: 83619 | W44: 5853.33 | X44: 89472.33 | Y44: HORACIO UMPIERREZ | Z44: MAXAUDIO EVENTOS Y PRODUCCIONES S.L | AA44: B76262534 | AB44: 2021-06-26 | AC44: 2021-06-29
A45: Infraestructuras, Territorio y Sector Primario | B45: Infraestructuras | C45: 2021/1890L | D45: Suministro de material oficina no inventariable. Dos lotes | E45: FINALIZADO | F45: enviar t.C. documentación | G45: 2021-05-31 | K45: 160639.33 | L45: suministro | M45: abierto | N45: 3, de 12 meses | O45: 12 meses | P45: 30190000-7 | Q45: 2021-06-03 | R45: 2021-09-21 | S45: 2021-10-19 | Y45: Agustín Noval Vázquez
A46: Infraestructuras, Territorio y Sector Primario | B46: Infraestructuras | C46: 2021/9535M/2 lotes (4) | D46: Acuerdo marco para la contratación de los sevicios de redacción proyectos, dirección facultativaa de las obras gestionadas servicio Infraestructuras Cabildo/ 2 lotes | E46: Licitación | F46: Expte. Sara, extracto expte. a Audiencia | H46: 7803538.97
A47: Infraestructuras, Territorio y Sector Primario | B47: Infraestructuras | C47: 2021/9535M/lote 1/a | D47: Lote nº 1. a: Proyectos arquitectónicos | H47: 658916.38
A48: Infraestructuras, Territorio y Sector Primario | B48: Infraestructuras | C48: 2021/9535M/lote 2 | D48: Lote nº 2.: Proyectos de ingeniería. Dividido en 2 lotes
A49: Educación y Juventud | B49: Escuela Insular de Música | C49: 2021/8534Q/5 lotes | D49: Servicio de reparación, mantenimiento y afinación de los instrumentos musicales de la Escuela Insular de Música de Fuerteventura, 5 lotes | E49: Licitación | H49: 55990.18 | I49: 3919.31 | J49: 59909.49 | K49: 59909.49 | L49: Servicio | M49: Abierto | O49: 2 años | P49: 50860000; 98396000 | Q49: 2021-10-07
A50: Educación y Juventud | B50: Escuela Insular de Música | C50: 2021/8534Q/lote 1 | D50: Servicio de reparación, mantenimiento y afinación de los instrumentos musicales de la Escuela Insular de Música de Fuerteventura, Lote 1: Pianos | H50: 22566.27 | I50: 1579.64 | J50: 24145.91
A51: Educación y Juventud | B51: Escuela Insular de Música | C51: 2021/8534Q/lote 2 | D51: Servicio de reparación, mantenimiento y afinación de los instrumentos musicales de la Escuela Insular de Música de Fuerteventura, Lote 2: Instrumentos de viento | H51: 16248.84 | I51: 1131.42 | J51: 17386.26
A52: Educación y Juventud | B52: Escuela Insular de Música | C52: 2021/8534Q/ lote 3 | D52: Servicio de reparación, mantenimiento y afinación de los instrumentos musicales de la Escuela Insular de Música de Fuerteventura, Lote 3: Instrumentos de cuerda | H52: 10315.37 | I52: 722.08 | J52: 11037.45
A53: Educación y Juventud | B53: Escuela Insular de Música | C53: 2021/8534Q/ lote 4 | D53: Servicio de reparación, mantenimiento y afinación de los instrumentos musicales de la Escuela Insular de Música de Fuerteventura, Lote 4: Instrumentos de percusión | H53: 4965.7 | I53: 347.6 | J53: 5313.3
A54: Educación y Juventud | B54: Escuela Insular de Música | C54: 2021/8534Q/lote 5 | D54: Servicio de reparación, mantenimiento y afinación de los instrumentos musicales de la Escuela Insular de Música de Fuerteventura, Lote 5: Instrumentos electrónicos | H54: 1894 | I54: 132.58 | J54: 2.026.58
A55: Infraestructuras, Territorio y Sector Primario | B55: Infraestructuras | C55: 2020/24948D/ 2 lotes; SE0016/21 | D55: Servicio para la dirección facultativa y coordinación de Segurdidad y salud obra "Sustitución césped artificial en Campo de Fútbol 1 y 2 Francisco Melián, 2 lotes | E55: FINALIZADO; A.C. | F55: Trasladado al Servicio: 19.10.2021 | G55: 2021-06-15 | J55: 12248.42 | K55: 11441.12 | L55: Servicico | M55: Simplificado | O55: 2 meses | P55: 71240000-2 | Q55: 2021-06-16 | R55: 2021-09-27 | S55: 2021-10-18 | Y55: Pino Gonzalez Gordillo
A56: Políticas Sociales, Formación y Recursos Humanos | B56: Prevención de Riesgos Laborales | C56: 2021/00008212Q LOTE Nº1 | D56: CONTRATO DE SUMINISTRO DE MASCARILLAS PARA LA PROTECCIÓN DEL PERSONAL DEL CABILDO DE FUERTEVENTURA FRENTE A LA COVID-19. | E56: Adjudicado; SUSPENDER CONTRATO | F56: SUPERSIMPLIFICADO | G56: 2021-08-05 | H56: 25500 | I56: 0 | J56: 25500 | K56: 57750 | L56: Suministro | M56: SUPERSIMPLIFICADO | N56: No procede | O56: 2 MESES | P56: 33140000-3 Material médico fungible | Q56: 2021-08-09 | Y56: Nelly Margarita Concepción Mederos | Z56: NACIL MEDICA4 GROUP,S.L. | AA56: B48434096
A57: Políticas Sociales, Formación y Recursos Humanos | B57: Prevención de Riesgos Laborales | C57: 2021/00008212Q LOTE Nº2 | D57: CONTRATO DE SUMINISTRO DE MASCARILLAS PARA LA PROTECCIÓN DEL PERSONAL DEL CABILDO DE FUERTEVENTURA FRENTE A LA COVID-19. | E57: FINALIZADO | F57: SUPERSIMPLIFICADO | G57: 2021-08-05 | H57: 3375 | I57: 0 | J57: 3375 | K57: 57750 | L57: Suministro | M57: SUPERSIMPLIFICADO | N57: No procede | O57: 2 MESES | P57: 33140000-3 Material médico fungible | Q57: 2021-08-09 | V57: 3127.5 | W57: 0 | X57: 3127.5 | Y57: Nelly Margarita Concepción Mederos | Z57: CAROLINA BENGOA GARCÍA | AA57: 30615363V
A58: Infraestructuras, Territorio y Sector Primario | B58: Servicio de Infraestructuras | C58: 2021/00012777R; SE0049/21 (JULIA) | D58: (PICOS 20-24) DF, RC y CSS de la obras "PISTA DE ATLETISMO Y EDIFICACIÓN ANEXA EN CORRALEJO" | E58: Adjudicado | G58: 2021-06-03 | H58: 2401084.83 | I58: 168075.94 | J58: 2569160.77 | K58: 2410084.83 | L58: OBRA | M58: Abierto | O58: 12 meses | P58: 45212000-6 | Q58: 2021-07-06 | R58: 2021-10-27 | S58: 2021-11-11 | V58: 2004905.83 | W58: 140343.41 | X58: 2145249.24 | Y58: Pino González Gordillo y Juan Carlos Pérez Sánchez | Z58: UTE PISTA ATLETISMO CORRALEJO | AA58: U16853566
C59: 2021/00007143M- SU0015/21; 3 lotes | D59: SUMINISTRO DE VESTUARIO Y CALZADO LABORAL PARA EL PERSONAL DEL CABILDO DE FUERTEVENTURA , INTERADO POR 3 LOTES | G59: 2021-06-03 | H59: 150110 | I59: 4503.3 | L59: Suministro | M59: Abierto | O59: 90 dias | P59: 18221300-7: Impermeables. 18100000-0: Ropa de trabajo, ropa de trabajo especial y accesorios. 35113400-3: Ropa de protección y de seguridad . 18330000-1: Camisetas y camisas. 18235000-5: Jersey, cárdigans y artículos similares. 18234000-8: Pantalones. 18220000-7: Ropa para la intemperie. 18223200-0: Chaquetas. 18333000-2: Polos. 18425000-4: Cinturones. 18317000-4: Calcetines. 18443340-1: Gorras. 18441000-2: Sombreros. 18830000-6: Calzado de protección. 18813300-4: Calzado de vestir. 18820000-3: Calzado deportivo. | Q59: 2021-06-15 | Y59: Nelly Margarita Concepción Mederos
B60: Servicio Infraestructuras | C60: 2020/30687K | D60: Servicio para la dirección F., responsable contrat. Y coordinación Seguridad y Salud de las obras Pavimentado c en Betancuria y asfaltado caminos diseminados rurales en Tuineje | E60: Finalizado | F60: Trasladado expte. al Servicio Infraestructuras:22.11.2021 | G60: 2021-07-08 | I60: 1149.93 | J60: 3534.89 | K60: 16427.6 | L60: Servicio | M60: Simplificado | O60: 2 | P60: 71240000-2 | Q60: 2021-08-18 | R60: 2021-11-12 | S60: 2021-11-22 | Y60: Beatriz Suarez Bosa | AC60: 2021-11-22
C61: 2020/30687K/LOTE 2 | D61: LOTE 2: Servio D.F. y responsable cont. Ejecucion obra: Plan de asfaltado caminos municipales diseminados Tuineje. Fase II | H61: 6451.7 | I61: 451.62 | J61: 4072.95 | V61: 3806.5 | W61: 266.45 | X61: 4072.95 | Z61: ABRAHAM DOMINGUEZ DE LEÓN | AA61: DNI: 78530753J
B62: TURISMO | C62: 2020/30687K/LOTE 3 | D62: LOTE 3: Servio D.F. y responsable cont. Ejecucion obra: Plan de asfaltado caminos municipales diseminados Tuineje. Fase III | H62: 6441.01 | I62: 450.87 | J62: 6891.88 | V62: 3800.2 | W62: 266.01 | X62: 4066.21 | Z62: ABRAHAM DOMINGUEZ DE LEÓN | AA62: DNI: 78530753J
A63: Presidente del Cabildo | B63: Servicios Generales | C63: 2020/00024130L SE0036/21 | D63: SEGURO DE ACCIDENTES COLECTIVO PARA EL PERSONAL DEL CABILDO DE FUERTEVENTURA, ORGANISMOS AUTÓNOMOS Y ENTES DEPENDIENTES | E63: FINALIZADO | F63: Trasladado al Servicio:13.01.2022 | G63: 2021-09-01 | H63: 28000 | I63: 0 | J63: 28000 | K63: 134400 | L63: Servicio | M63: Abierto | N63: 1 año hasta máximo 3 prórrogas | O63: 1 año | P63: 66512000-2 66512100-3 | Q63: 2021-09-16 | R63: 2021-12-10 | S63: 13.01.2022 | V63: 24469.55 | W63: 0 | X63: 24469.55 | Y63: Agustín Noval Vázquez | Z63: ZURICH INSURANCE PLC, SUCURSAL EN ESPAÑA | AA63: W0072130-H | AB63: 2022-01-12 | AC63: 2022-01-13 | AD63: 2022
B64: Servicio Infraestructuras | C64: 2020/30474S, OB006/21 | D64: Asfaltado caminos municipales de titularidad publica diseminados Tuineje, integrado por dos lotes | E64: FINALIZADO; A.C. | F64: SIMPLIFICADO | G64: 2021-06-17 | H64: 557432.84 | I64: 39020.30 | J64: 596453.14 | K64: 557432.84 | L64: OBRAS | M64: ABIERTO SIMPLIFICADO | O64: 1 | P64: 45233222-1 | Q64: 2021-06-21 | R64: 2021-11-23 | S64: 2021-12-20 | AC64: 2021-12-20
A65: Infraestructuras, Territorio y Sector Primario | B65: Servicio de Infraestructuras | C65: 2020/00023112J; OB0021/21 | D65: REMINERALIZACIÓN DEL AGUA DESALADA DE LA PLANTA DESALADORA DE CORRALEJO PARA UN CAUDAL DE 4.000 M3/DÍA. T.M. LA OLIVA | E65: FORMALIZACIÓN CONTRATO | G65: 2021-10-29 | H65: 363132.55 | I65: 0 | J65: 363132.55 | K65: 363132.55 | L65: OBRA | M65: ABIERTO SIMPLIFICADO | O65: 7 meses | P65: 45252126-7: Trabajos de construcción de plantas de tratamiento de agua potable | Q65: 2021-11-03 | R65: 2021-12-30 | S65: 2022-01-11 | V65: 289150.37 | W65: 0 | X65: 289150.37 | Y65: Beatriz Suárez Bosa | Z65: UTE Erbania REMINERALIZACIÓN EDAM CORRALEJO (TAGUA S.L.-ELMASA TECNOLOGÍA DEL AGUA S.A.U.), | AA65: U67951293 | AD65: 2022
A66: Infraestructuras, Territorio y Sector Primario | B66: Servicio de Infraestructuras | C66: 2020/00025219G-OB0011/21 | D66: AMPLIACIÓN Y MEJORA DE LA EDAM DE PTO ROSARIO 2ª FASE | E66: FORMALIZACIÓN CONTRATO | G66: 2021-08-06 | H66: 1957532.58 | I66: 0 | J66: 1957532.58 | K66: 1957532.58 | L66: OBRA | M66: ABIERTO SIMPLIFICADO | O66: 9 meses | P66: 45232430-5: Obras para el tratamiento de agua 45252126-7: Trabajos de construcción de plantas de tratamiento de agua potable | Q66: 2021-08-11 | R66: 2021-12-30 | V66: 1170843.67 | W66: 0 | X66: 1170843.67 | Y66: Beatriz Suárez Bosa | Z66: UTE Erbania REMINERALIZACIÓN EDAM PUERTO DEL ROSARIO (TAGUA S.L.-ELMASA TECNOLOGÍA DEL AGUA S.A.U.), | AA66: U67950964 | AD66: 2022
A67: Infraestructuras, Territorio y Sector Primario | B67: Servicio de Infraestructuras | C67: 2020/00023137S; OB0018/21 | D67: REMINERALIZACIÓN DEL AGUA DESALADA DE LA PLANTA DESALADORA DE GRAN TARAJAL PARA UN CAUDAL DE 4.000 M3/DÍA. T.M. TUINEJE | E67: FORMALIZACIÓN CONTRATO | G67: 2021-10-29 | H67: 361216.01 | I67: 0 | J67: 361216.01 | K67: 361216.01 | L67: OBRA | M67: ABIERTO SIMPLIFICADO | O67: 7 meses | P67: 45252126-7: Trabajos de construcción de plantas de tratamiento de agua potable | Q67: 2021-11-02 | R67: 2021-12-30 | S67: 2022-01-11 | V67: 287636.31 | W67: 0 | X67: 287636.31 | Y67: Beatriz Suárez Bosa | Z67: UTE Erbania REMINERALIZACIÓN EDAM GRAN TARAJAL (TAGUA S.L.-ELMASA TECNOLOGÍA DEL AGUA S.A.U.), | AA67: U67951186
A68: Infraestructuras, Territorio y Sector Primario | B68: Servicio de Infraestructuras | C68: 2020/00022850G; OB0022/21 | D68: PICOS (20-24) - RED DE SANEAMIENTO Y PLUVIALES CALLE ARAGÓN, PUERTO DEL ROSARIO | E68: FORMALIZACIÓN | F68: 2022 | G68: 2021-11-04 | H68: 608812.64 | I68: 42616.88 | J68: 651429.52 | K68: 608812.64 | L68: OBRA | M68: ABIERTO SIMPLIFICADO | O68: 5 meses | P68: 45232410-9: OBRAS DE SANEAMIENTO 45233200-1: TRABAJOS DIVERSOS DE PAVIMENTACIÓN | Q68: 2021-11-04 | R68: 2021-12-29 | S68: 2022-01-03 | V68: 531797.84 | W68: 37225.85 | X68: 569023.69 | Y68: Manuel Martínez Calaco | Z68: OBRAS PÚBLICAS CANARIAS S.L., | AA68: B76140953 | AD68: 2022
A69: PRESIDENCIA | B69: Servicio Gestión de Bienes | C69: 2021/5478L; AE001/21 | D69: ARRENDAMIENTO INMUEBLE PARA UBICACIÓN PERSONAL CABILDO FUERTEVENTURA, ENTRE OTROS DE RECURSOS HUMANOS | E69: ADJUDICADO, pendiente contrato | F69: Expte. en Gestion de Bienes | G69: 2021-08-11 | H69: 206400 | I69: 14448 | J69: 220848 | K69: 206400 | L69: Privado | M69: Abierto | N69: 12 | O69: 4 años | P69: 70220000-9 | Q69: 2021-08-12 | R69: 2021-12-23 | S69: 2022-01-05 | V69: 206400 | W69: 14448 | X69: 220848 | Y69: Cristina Arribas | Z69: PALAFUSA, S.L.- SQUALE INTERNACIONAL | AA69: B35001940; B35078344 | AB69: PENDIENTE
B70: Infraestructuras | C70: 2020/24948D/ 1 SE0016/21 | D70: Servicio para la dirección facultativa y coordinación de Segurdidad y salud obra "Sustitución césped artificial en Campo de Fútbol 1 Francisco Melián, lote nº 1 | E70: FINALIZADO; A.C. | H70: 11441.12 | I70: 801.3 | V70: 4333.33 | W70: 303.33 | Z70: LUIS BELTRÁN PADILLA CARMONA | AA70: 42889770Z | AB70: 2021-10-06 | AC70: 2021-10-19
B71: Infraestructuras | C71: 2020/24948D/ 2 SE0016/21 | D71: Servicio para la dirección facultativa y coordinación de Segurdidad y salud obra "Sustitución césped artificial en Campo de Fútbol 2 Francisco Melián, lote nº 2 | E71: FINALIZADO; A.C. | V71: 3333.33 | W71: 233.33 | Z71: LUIS BELTRÁN PADILLA CARMONA | AA71: 42889770Z | AB71: 2021-10-06 | AC71: 2021-10-19
B72: Informática | C72: 2021/10139P- SU0024/21 | D72: SUMINISTRO E INSTALACIÓN DE APLICACIONES DE FIRMA ELECTRÓNICA EN LOS APLICATIVOS CONTABLES Y CONTABILIDAD ANALÍTICA, Y DE SERVICIO DE FORMACIÓN Y MANTENIMIENTO DE DICHAS APLICACIONES | E72: FINALIZADO; A.C. | F72: Trasladado a Nuevas Tecnologías | H72: 270285.00 | I72: 18919.95 | J72: 289204.95 | M72: P/N SIN PUBLICIDAD | O72: Instal. 3 m y manten. 3 años | P72: 48920000-3, 72265000-0, 72267100-0 | Q72: 2021-12-17 | R72: 2022-01-05 | V72: 270285.00 | W72: 18919.95 | Y72: Francisco Padillas | Z72: AYTOS SOLUCIONES INFORMÁTICAS S.L.U. | AA72: B41632332 | AB72: 2021-12-21 | AC72: 2022-01-05
A73: Aguas, Residuos y Caza | B73: Residuos | C73: 2021/8646J-SU0020/21 | D73: Suministro contenedores para servicio recogida separada residuos de envases ligeros y papel-cartón isla Fuert, 2 lotes | E73: FINALIZADO; A. 2022, incluido en BD. A.C. | F73: Trasladado al Servicio:18.02.2022 | G73: 2021-09-07 | H73: 1213499.82 | I73: 36405 | J73: 1249904.82 | K73: 1213499.82 | L73: Suministro | M73: Abierto Abierto, Sara | O73: 3 | Q73: 2021-09-15 | R73: 2021-12-30 | S73: 2022-02-17 | Y73: Gemma Mosquera Paz
A74: Aguas, Residuos y Caza | B74: Residuos | C74: 2021/8646J/ Lote 1 | D74: Suministro contenedores para servicio recogida separada residuos de envases ligeros y papel-cartón isla Fuert, lote 1: 377 contenedores de plástico | E74: FINALIZADO | F74: DOCUMENT. A.C. incluida | H74: 340815.54 | I74: 10224.47 | J74: 351040.01 | P74: 43210000-8 | V74: 290290 | W74: 8708.70 | X74: 298998.70 | Z74: ROTOTANK,S .L. | AA74: B9605743 | AB74: 2022-02-07 | AC74: 2022-02-18
A75: Aguas, Residuos y Caza | B75: Residuos | C75: 2021/8646J/ lote2 | D75: Suministro contenedores para servicio recogida separada residuos de envases ligeros y papel-cartón isla Fuert, Lote 2: 702 contenedores carga lateral material metálico | E75: FINALIZADO | H75: 872684.28 | I75: 26180.53 | P75: 44613700-7 | V75: 872235 | W75: 61056.45 | X75: 933291.45 | Z75: SANIMOBEL, S.A. | AA75: A78169422 | AB75: 2022-02-04 | AC75: 2022-02-18
A76: Cultura, Patrimonio Histórico y Difusión Patrimonio Cultural | B76: Palacio de Formación y Congresos | C76: 2021/00022016V- SE0061/21 | D76: Representación y puesta en escena para los espectáculos únicos infantiles “Amelia en la Ciudad de la ilusión”, “El Circo de los sueños” y “un paseo por las estrellas”, dentro de la IV Edición de Festín, Festival Infantil de Fuerteventura | E76: FINALIZADO; ENVIAR 2022 | F76: Trasladado al Servicio:02.02.2021 | G76: 2021-12-27 | H76: =J76-I76 -> 48847.13 | I76: 3419.3 | J76: 52266.43 | K76: 48847.13 | L76: SERVICIO | M76: NEGOCIADO SIN PUBLICIDAD | O76: 29 y 30 de enero de 2022. | P76: 92312000-2 | Q76: 2021-12-22 | R76: 2022-01-24 | S76: 2022-02-22 | V76: =X76-W76 -> 48847.13 | W76: 3419.3 | X76: 52266.43 | Y76: Catalina Carrascosa Molino | Z76: PRODUCCIONES ESCÉNICAS CLAPSO S.L. | AA76: B-35481837 | AB76: 2022-01-26 | AC76: 2022-02-28
A77: Políticas Sociales, Formación y Recursos Humanos | B77: PREVENCION RISESGOS LABORALES | C77: 2021/00008115B- SU0028/21 | D77: SOFTWARE DE GESTIÓN INTEGRAL PARA EL SERVICIO DE PREVENCIÓN DE RIESGOS LABORALES DEL CABILDO DE FUERTEVENTURA | E77: FINALIZADO | F77: Publicado resolución desierto:01.02.2022; Trasladado expte. al Servicio:01.02.2022 | G77: 2021-12-02 | H77: =J77-I77 -> 8513.7 | I77: 595.96 | J77: 9109.66 | K77: 10289.7 | L77: SUMINISTRO | M77: ABIERTO | N77: 24 MESES | O77: 12 MESES | P77: 48611000-4: Paquetes de software de bases de datos 48612000-1: Sistema de gestión de base de datos | Q77: 2021-12-10 | R77: Desierto | T77: 2022-01-26
C78: 2020/00015400Y- SE0032/20 | D78: PROYECTO FORMATIVO CUALIFÍCATE 2020; LOTE Nº 1 | E78: FINALIZADO
C79: 2020/00015400Y- SE0032/20 | D79: PROYECTO FORMATIVO CUALIFÍCATE 2020; Lote nº 2 | E79: FINALIZADO
C80: 2020/00015400Y- SE0032/20 | D80: PROYECTO FORMATIVO CUALIFÍCATE 2020; Lote nº 3 | E80: FINALIZADO
C81: 2020/00015400Y- SE0032/20 | D81: PROYECTO FORMATIVO CUALIFÍCATE 2020; Lote nº 4 | E81: FINALIZADO
C82: 2020/00015400Y- SE0032/20 | D82: PROYECTO FORMATIVO CUALIFÍCATE 2020; Lote nº 5 | E82: FINALIZADO
C83: 2020/00015400Y- SE0032/20 | D83: PROYECTO FORMATIVO CUALIFÍCATE 2020; Lote nº 6 | E83: FINALIZADO
C84: 2020/00015400Y- SE0032/20 | D84: PROYECTO FORMATIVO CUALIFÍCATE 2020; Lote nº 7 | E84: FINALIZADO
C85: 2020/00015400Y- SE0032/20 | D85: PROYECTO FORMATIVO CUALIFÍCATE 2020; Lote nº 8 | E85: FINALIZADO
C86: 2020/00015400Y- SE0032/20 | D86: PROYECTO FORMATIVO CUALIFÍCATE 2020; Lote nº 9 | E86: FINALIZADO
C87: 2020/00015400Y- SE0032/20 | D87: PROYECTO FORMATIVO CUALIFÍCATE 2020; Lote nº 10 | E87: FINALIZADO
C88: 2020/00015400Y- SE0032/20 | D88: PROYECTO FORMATIVO CUALIFÍCATE 2020; Lote nº 11 | E88: FINALIZADO
C89: 2020/00015400Y- SE0032/20 | D89: PROYECTO FORMATIVO CUALIFÍCATE 2020; Lote nº 12 | E89: FINALIZADO
C90: 2020/00015400Y- SE0032/20 | D90: PROYECTO FORMATIVO CUALIFÍCATE 2020; Lote nº 13 | E90: FINALIZADO
C91: 2020/00015400Y- SE0032/20 | D91: PROYECTO FORMATIVO CUALIFÍCATE 2020; Lote nº 14 | E91: FINALIZADO
C92: 2020/00015400Y- SE0032/20 | D92: PROYECTO FORMATIVO CUALIFÍCATE 2020; Lote nº 15 | E92: FINALIZADO
C93: 2020/00015400Y- SE0032/20 | D93: PROYECTO FORMATIVO CUALIFÍCATE 2020; Lote nº 16 | E93: FINALIZADO
C94: 2020/00015400Y- SE0032/20 | D94: PROYECTO FORMATIVO CUALIFÍCATE 2020; Lote nº 17 | E94: FINALIZADO
C95: 2020/00015400Y- SE0032/20 | D95: PROYECTO FORMATIVO CUALIFÍCATE 2020; Lote nº 18 | E95: FINALIZADO
C96: 2020/00015400Y- SE0032/20 | D96: PROYECTO FORMATIVO CUALIFÍCATE 2020; Lote nº 19 | E96: FINALIZADO
C97: 2020/00015400Y- SE0032/20 | D97: PROYECTO FORMATIVO CUALIFÍCATE 2020; Lote nº 20 | E97: FINALIZADO
C98: 2020/00015400Y- SE0032/20 | D98: PROYECTO FORMATIVO CUALIFÍCATE 2020; Lote nº 21 | E98: FINALIZADO
C99: 2020/00015400Y- SE0032/20 | D99: PROYECTO FORMATIVO CUALIFÍCATE 2020; Lote nº 22 | E99: FINALIZADO
C100: 2020/00015400Y- SE0032/20 | D100: PROYECTO FORMATIVO CUALIFÍCATE 2020; Lote nº 23 | E100: FINALIZADO
A101: INFRAEStructuras, Territorio y Sector Primario | B101: Servicio de Infraestructuras | C101: 2020/00025155D OB0013/21 (ANI) | D101: AMPLIACIÓN Y MEJORA DE LA EDAM DE CORRALEJO | E101: FORMALIZACIÓN CONTRATO; 2022 | G101: 2021-08-06 | H101: 3205581.27 | I101: 0 | J101: 3205581.27 | M101: Abierto | O101: 10 | P101: 45232430-5; 45252126-7 | Q101: 2021-08-13 | R101: 2021-12-31 | S101: 2022-01-04 | V101: 1895496.67 | W101: 5 | Y101: Beatriz Suárez Bosa | Z101: UTE.: MEDIOAMBIENTE RESIDUOS Y AGUAS MAREA, S.L-VVO. CONSTRUCCIONES Y PROYECTOS, S.A. | AA101: U67962845 | AD101: 2022
A102: Transparencia, Participación Ciudadana y Nuevas Tecnologías | B102: Informática y NNTT | C102: 2021/00015614D SE0048/21 | D102: TELEFONIA Y TELECOMUNICACIONES 2021 | E102: FORMALIZACIÓN | F102: 2022 | G102: 2021-11-04 | H102: 213000 | I102: 14910 | J102: 227910 | L102: SERVICIO | M102: Abierto | O102: 12 | P102: 64210000-1; 64211100-9; 64212000-5 | Q102: 2021-11-05 | R102: 2022-02-21 | S102: 2022-02-22 | V102: 211920.8 | W102: 14834.46 | X102: 226755.26 | Z102: UTE.: TELEFONICA DE ESPAÑA S.A.U.- TELEFONICA MOVILES DE ESPAÑA, S.A.U. | AA102: U67887364
C103: 2021/00007143M- SU0015/21; lote 1 | D103: SUMINISTRO DE VESTUARIO Y CALZADO LABORAL PARA EL PERSONAL DEL CABILDO DE FUERTEVENTURA , INTERADO POR 3 LOTES; Lote nº 1: Vestuario laboral para personal Cabildo | E103: FINALIZADO | F103: 2022 | J103: 94593 | O103: 90 | R103: 2021-11-17 | V103: 61485.45 | W103: 1844.56 | X103: 63330.01 | Y103: Nelly Margarita Concepción Mederos | Z103: SEBASTIÁN TEJERA, S.L. | AA103: B35203926 | AB103: 2021-12-21
C104: 2021/00007143M- SU0015/21; lote 2 | D104: SUMINISTRO DE VESTUARIO Y CALZADO LABORAL PARA EL PERSONAL DEL CABILDO DE FUERTEVENTURA , INTERADO POR 3 LOTES, LOTE Nº 2: Uniformidad agentes Medio Ambiente | E104: pendient adjudica
C105: 2021/00007143M- SU0015/21; lote 3 | D105: SUMINISTRO DE VESTUARIO Y CALZADO LABORAL PARA EL PERSONAL DEL CABILDO DE FUERTEVENTURA , INTERADO POR 3 LOTES, LOTE Nº 3: Calzado laboral | E105: Desestimiento contrato:25/08/2021 | U105: 2021-08-25
B106: Palacio de Formación y Congresos | C106: 2020/26086C - SU0025/21 | D106: SUMINISTRO E INSTALACIÓN DE UN EQUIPO DE SONIDO PARA EL AUDITORIO DEL PALACIO DE FORMACIÓN Y CONGRESOS DE FUERTEVENTURA | E106: PENDIENTE | F106: 2022 | G106: 2021-11-30 | H106: 90617.7 | I106: 6343.24 | J106: 96960.94 | K106: 90617.7 | L106: SUMINISTRO | M106: ABIERTO SIMPLIFICADO | O106: 2 | P106: 32342410-9; 323442420-2; 32351300-1 | Q106: 2021-12-02
B107: SERVICIO ASUNTOS SOCIALES, SANIDAD , CONSUMO E INMIGRACIÓN | C107: 2020/12167G - SE0059/21 | D107: SERVICIO DE DINAMIZACIÓN INTEGRAL Y PROMOCIÓN DE LA PARTICIPACIÓN INFANTIL DE FUERTEVENTURA. ISLA AMIGA | E107: PENDIENTE | F107: 2022 | G107: 2021-12-18 | H107: 101668.18 | I107: 7116.77 | J107: 108784.95 | K107: 254170.45 | L107: SERVICIO | M107: ABIERTO | N107: 12 | O107: 24 | P107: 98000000-3 | Q107: 2021-12-20
A108: Industria, Comercio, Transportes, Accesibilidad y Movilidad Sostenible | B108: Industria y Actividades Clasificadas | C108: 2021/00009756L OB0030/21 (ANI) | D108: AYUNTAMIENTO DE LA OLIVA AUTOCONSUMO PISCINA MUNICIPAL | E108: PENDIENTE | F108: 2022 | G108: 2021-12-10 | H108: 76783.39 | I108: 5374.84 | J108: 82158.23 | K108: 76783.39 | L108: OBRA | M108: ABIERTO SIMplificado | O108: 3 | P108: 45300000-3; 45259900-6; 45231215-4 | Q108: 2021-12-13
A109: Industria, Comercio, Transportes, Accesibilidad y Movilidad Sostenible | B109: Servicio de Industria y Actividades Clasificadas | C109: 2021/00009759E OB0028/21 (ANI) | D109: AUTOCONSUMO ESTACIÓN DE GUAGUAS DE PUERTO DEL ROSARIO | E109: MESA DE CONTRATACIÓN | F109: 2022 | G109: 2021-12-07 | H109: 103131.9 | I109: 7219.23 | J109: 110351.13 | K109: 103131.9 | L109: OBRA | M109: ABIERTO SIMPLIFICADO | O109: 56 | P109: 45300000-3; 45315600-4; 45259900-6; 45261215-4 | Q109: 2021-12-13
A110: Infraestructuras | B110: Servicio Infraestructuras | C110: 2020/22457W; SU0022/21 (JULIA) | D110: PICABAS 2020-2025 - SUMINISTRO E INSTALACIÓN DE DOS NUEVOS FILTROS DE ARENA EN LA EDAM DE GRAN TARAJAL | E110: MESA CONTRATACIÓN | G110: 2021-11-18 | H110: 438567.58 | I110: 30699.73 | J110: 469267.31 | K110: 438567.58 | L110: SUMINISTRO | M110: ABIERTO | O110: 10 | P110: 39370000-6; 43328000-8 | Q110: 2021-11-19
B111: Informática y NNTT | C111: 2021/12786X- SU0027/21 | D111: SUMINISTRO DE LICENCIAS DE AUTOCAD | E111: PENDIENTE | F111: 2022 | H111: 129663.55 | I111: 9076.45 | J111: 138740 | K111: 129663.55 | L111: SUMINISTRO | M111: Abierto simplificado | O111: 48 | P111: 48321000-4 | Q111: 2021-12-10
